{"text_format":"1","workbook":"xlsx","n_sheets":3,"sheets":["Приложение 4","Диаграмма1","Приложение 3"],"not_rendered":{"charts":1,"images":0,"macros":0,"external_links":0,"defined_names":6,"comments":0,"pivot_tables":0},"unopened":[],"bounds":{"document_bytes":16777216,"sheet_cells":100000,"rows_first":2000,"rows_last":500,"rows_between":2000,"halvings":0,"cell_chars":16384,"cell_head_chars":4096},"cells_cut":0,"cells_raw":0,"read":"whole","date_system":"1900"}

{"sheet":"Приложение 4","index":0,"n_rows":77,"n_cols":30,"rows_kept":77,"cut":false,"hidden":false,"merged":[[0,28,0,29],[1,28,1,29],[2,2,2,29],[3,2,3,29],[4,2,4,29],[5,2,5,29],[6,2,6,29],[7,2,7,29],[8,2,8,29],[9,2,9,29],[10,2,10,13],[10,14,10,29],[11,2,11,29],[12,0,12,13],[12,14,15,23],[12,24,15,24],[12,25,15,25],[12,26,12,29],[13,0,15,2],[13,3,15,4],[13,5,15,6],[13,7,15,13],[13,26,15,26],[13,27,15,27],[13,28,15,28],[13,29,15,29],[74,9,74,27],[75,1,75,24],[75,27,75,29],[76,9,76,16],[70,9,70,29],[71,9,71,27],[71,28,71,29],[72,9,72,27],[73,9,73,27]]}
[null,null,null,null,null,null,null,null,null,null,null,null,null,null,null,null,null,null,null,null,null,null,null,null,null,null,null,null,"Приложение  2"]
[null,null,null,null,null,null,null,null,null,null,null,null,null,null,null,null,null,null,null,null,null,null,null,null,null,null,null,null,"к муниципальной программе Весьегонского муниципального округа Тверской области \"Развитие системы образования Весьегонского муниципального округа Тверской области\" на 2021-2027 годы"]
[null,null,"Отчет"]
[null,null,"о реализации муниципальной   программы  Весьегонского муниципального округа   Тверской области «____________»"]
[null,null,"                                                                                                              ( название     программы)  "]
[null,null,"  за   _____________________________________"]
[null,null,"         (указывается отчетный финансовый год) "]
[null,null,"Главный администратор  (администратор)  муниципальной  программы  Весьегонского муниципального округа  Тверской области ____________________________"]
[]
[null,null,"Принятые обозначения и сокращения:"]
[null,null,"1.Программа - муниципальная программа  муниципального образования Тверской области"]
[null,null,"2. Подпрограмма  - подпрограмма муниципальной  программы  Весьегонского района  Тверской области "]
["Коды бюджетной классификации ",null,null,null,null,null,null,null,null,null,null,null,null,null,"Дополнительный аналитический код",null,null,null,null,null,null,null,null,null,"Цели программы, подпрограммы,  задачи  подпрограммы, мероприятия подпрограммы, административные мероприятия  и их показатели","Единица  измерения","Результаты реализации   программы   в  20__ году"]
["код администратора  программы ",null,null,"раздел",null,"подраздел",null,"классификация целевой статьи расхода бюджета",null,null,null,null,null,null,null,null,null,null,null,null,null,null,null,null,null,null,"план","факт","индексы  освоения  бюджетных средств  и достижения  плановых значений показателей","причины отклонений от плана"]
[]
[]
[1,2,3,4,5,6,7,8,9,10,11,12,13,14,{"$f":"N17+1","v":15},16,17,18,19,20,21,22,23,24,25,26,27,28,29,30]
[null,null,null,null,null,null,null,null,null,null,null,null,null,null,null,null,null,null,null,null,null,null,null,null,"Программа , всего ","тыс. рублей"]
[null,null,null,null,null,null,null,null,null,null,null,null,null,null,null,null,null,null,null,null,null,null,null,null,"Программная  часть ","тыс. рублей"]
[null,null,null,null,null,null,null,null,null,null,null,null,null,null,null,null,null,null,null,null,null,null,null,null,"Цель программы 1  (наименование)"]
[null,null,null,null,null,null,null,null,null,null,null,null,null,null,null,null,null,null,null,null,null,null,null,null,"Показатель цели программы  1  (наименование)","единица  измерения"]
[null,null,null,null,null,null,null,null,null,null,null,null,null,null,null,null,null,null,null,null,null,null,null,null,"Показатель цели программы  2   (наименование)","единица  измерения"]
[null,null,null,null,null,null,null,null,null,null,null,null,null,null,null,null,null,null,null,null,null,null,null,null,"Цель программы   (наименование)"]
[null,null,null,null,null,null,null,null,null,null,null,null,null,null,null,null,null,null,null,null,null,null,null,null,"Показатель цели программы 1   (наименование)","единица  измерения"]
[null,null,null,null,null,null,null,null,null,null,null,null,null,null,null,null,null,null,null,null,null,null,null,null,"Показатель цели программы 2   (наименование)","единица  измерения"]
[null,null,null,null,null,null,null,null,null,null,null,null,null,null,null,null,null,null,null,null,null,null,null,null,"Подпрограмма  1   (наименование)","тыс. рублей"]
[null,null,null,null,null,null,null,null,null,null,null,null,null,null,null,null,null,null,null,null,null,null,null,null,"Задача  подпрограммы 1   (наименование)","тыс. рублей"]
[null,null,null,null,null,null,null,null,null,null,null,null,null,null,null,null,null,null,null,null,null,null,null,null,"Показатель   задачи подпрограммы 1 (наименование)","единица  измерения"]
[null,null,null,null,null,null,null,null,null,null,null,null,null,null,null,null,null,null,null,null,null,null,null,null,"Показатель   задачи подпрограммы  2(наименование)","единица  измерения"]
[null,null,null,null,null,null,null,null,null,null,null,null,null,null,null,null,null,null,null,null,null,null,null,null,"Мероприятие   подпрограммы 1.001  (наименование)","тыс. рублей"]
[null,null,null,null,null,null,null,null,null,null,null,null,null,null,null,null,null,null,null,null,null,null,null,null,"Показатель мероприятия подпрограммы 1    (наименование)","единица  измерения"]
[null,null,null,null,null,null,null,null,null,null,null,null,null,null,null,null,null,null,null,null,null,null,null,null,"Показатель мероприятия подпрограммы   2  (наименование)","единица  измерения."]
[null,null,null,null,null,null,null,null,null,null,null,null,null,null,null,null,null,null,null,null,null,null,null,null,"Мероприятие  подпрограммы 1.002 (наименование)","тыс. рублей"]
[null,null,null,null,null,null,null,null,null,null,null,null,null,null,null,null,null,null,null,null,null,null,null,null,"Показатель мероприятия подпрограммы  1   (наименование)","единица  измерения"]
[null,null,null,null,null,null,null,null,null,null,null,null,null,null,null,null,null,null,null,null,null,null,null,null,"Показатель мероприятия подпрограммы  2   (наименование)","единица  измерения"]
[null,null,null,null,null,null,null,null,null,null,null,null,null,null,null,null,null,null,null,null,null,null,null,null,"Задача   подпрограммы 2  (наименование)","тыс. рублей"]
[null,null,null,null,null,null,null,null,null,null,null,null,null,null,null,null,null,null,null,null,null,null,null,null,"Показатель   задачи подпрограммы   1 (наименование)","единица  измерения"]
[null,null,null,null,null,null,null,null,null,null,null,null,null,null,null,null,null,null,null,null,null,null,null,null,"Показатель   задачи подпрограммы 2  (наименование)","единица  измерения"]
[null,null,null,null,null,null,null,null,null,null,null,null,null,null,null,null,null,null,null,null,null,null,null,null,"Мероприятие    подпрограммы 2.001  (наименование)","тыс. рублей"]
[null,null,null,null,null,null,null,null,null,null,null,null,null,null,null,null,null,null,null,null,null,null,null,null,"Показатель мероприятия подпрограммы  1   (наименование)","единица  измерения"]
[null,null,null,null,null,null,null,null,null,null,null,null,null,null,null,null,null,null,null,null,null,null,null,null,"Показатель мероприятия подпрограммы  2   (наименование)","единица  измерения."]
[null,null,null,null,null,null,null,null,null,null,null,null,null,null,null,null,null,null,null,null,null,null,null,null,"Административное мероприятие  2.002  (наименование административного мероприятия)","(да/нет)"]
[null,null,null,null,null,null,null,null,null,null,null,null,null,null,null,null,null,null,null,null,null,null,null,null,"Показатель административного мероприятие (наименование)","единица  измерения"]
[null,null,null,null,null,null,null,null,null,null,null,null,null,null,null,null,null,null,null,null,null,null,null,null,"Мероприятие    подпрограммы 2.003 (наименование)","тыс. рублей"]
[null,null,null,null,null,null,null,null,null,null,null,null,null,null,null,null,null,null,null,null,null,null,null,null,"Показатель мероприятия подпрограммы  1   (наименование)","единица  измерения"]
[null,null,null,null,null,null,null,null,null,null,null,null,null,null,null,null,null,null,null,null,null,null,null,null,"Показатель мероприятия подпрограммы  2  (наименование)","единица  измерения"]
[null,null,null,null,null,null,null,null,null,null,null,null,null,null,null,null,null,null,null,null,null,null,null,null,"Подпрограмма 2 (наименование) ","тыс. рублей"]
[null,null,null,null,null,null,null,null,null,null,null,null,null,null,null,null,null,null,null,null,null,null,null,null,"Задача  подпрограммы  1  (наименование)","тыс. рублей"]
[null,null,null,null,null,null,null,null,null,null,null,null,null,null,null,null,null,null,null,null,null,null,null,null,"Показатель   задачи подпрограммы 1 (наименование)","единица  измерения"]
[null,null,null,null,null,null,null,null,null,null,null,null,null,null,null,null,null,null,null,null,null,null,null,null,"Показатель   задачи подпрограммы  2 (наименование)","единица  измерения"]
[null,null,null,null,null,null,null,null,null,null,null,null,null,null,null,null,null,null,null,null,null,null,null,null,"Административное мероприятие  1.001  (наименование административного мероприятия)","(да/нет)"]
[null,null,null,null,null,null,null,null,null,null,null,null,null,null,null,null,null,null,null,null,null,null,null,null,"Показатель административного мероприятия (наименование)","единица  измерения"]
[null,null,null,null,null,null,null,null,null,null,null,null,null,null,null,null,null,null,null,null,null,null,null,null,"Административное мероприятие 1.002  (наименование административного мероприятия)","(да/нет)"]
[null,null,null,null,null,null,null,null,null,null,null,null,null,null,null,null,null,null,null,null,null,null,null,null,"Показатель административного мероприятия (наименование)","единица  измерения"]
[null,null,null,null,null,null,null,null,null,null,null,null,null,null,null,null,null,null,null,null,null,null,null,null,"Задача    подпрограммы 2  (наименование)","тыс. рублей"]
[null,null,null,null,null,null,null,null,null,null,null,null,null,null,null,null,null,null,null,null,null,null,null,null,"Показатель   задачи подпрограммы 1 (наименование)","единица  измерения"]
[null,null,null,null,null,null,null,null,null,null,null,null,null,null,null,null,null,null,null,null,null,null,null,null,"Показатель   задачи подпрограммы  2 (наименование)","единица  измерения"]
[null,null,null,null,null,null,null,null,null,null,null,null,null,null,null,null,null,null,null,null,null,null,null,null,"Административное мероприятие  2.001  (наименование административного мероприятия)","(да/нет)"]
[null,null,null,null,null,null,null,null,null,null,null,null,null,null,null,null,null,null,null,null,null,null,null,null,"Показатель административного мероприятия (наименование)","единица  измерения"]
[null,null,null,null,null,null,null,null,null,null,null,null,null,null,null,null,null,null,null,null,null,null,null,null,"Административное мероприятие  2.002  (наименование административного мероприятия)","(да/нет)"]
[null,null,null,null,null,null,null,null,null,null,null,null,null,null,null,null,null,null,null,null,null,null,null,null,"Показатель административного мероприятия (наименование)","единица  измерения."]
[null,null,null,null,null,null,null,null,null,null,null,null,null,null,null,null,null,null,null,null,null,null,null,null,"Мероприятие  подпрограммы   2.003 (наименование)","тыс. рублей"]
[null,null,null,null,null,null,null,null,null,null,null,null,null,null,null,null,null,null,null,null,null,null,null,null,"Показатель мероприятия подпрограммы    (наименование)","единица  измерения"]
[null,null,null,null,null,null,null,null,null,null,null,null,null,null,null,null,null,null,null,null,null,null,null,null,"Обеспечивающая подпрограмма  9","тыс. рублей"]
[null,null,null,null,null,null,null,null,null,null,null,null,null,null,null,null,null,null,null,null,null,null,null,null,"1. Обеспечение деятельности  главного администратора  программы и  администраторов программы ","тыс. рублей"]
[null,null,null,null,null,null,null,null,null,null,null,null,null,null,null,null,null,null,null,null,null,null,null,null,"1.001 Расходы  на руководство и управление  (наименование главного администратора программы)","тыс. рублей"]
[null,null,null,null,null,null,null,null,null,null,null,null,null,null,null,null,null,null,null,null,null,null,null,null,"1.002 Расходы  на руководство и управление  (наименование  администратора программы)","тыс. рублей"]
[null,null,null,null,null,null,null,null,null,null,null,null,null,null,null,null,null,null,null,null,null,null,null,null,"1.003 Расходы  на руководство и управление  (наименование  администратора программы)","тыс. рублей"]
[]
[]
[null,null,null,null,null,null,null,null,null,"                                                                                                                              Основные результаты реализации   муниципальной  программы в отчетном финансовом году: "]
[null,null,null,null,null,null,null,null,null,"Индекс достижения плановых значений показателей муниципальной  программы :"]
[null,null,null,null,null,null,null,null,null,"Индекс освоения бюджетных средств, выделенных на реализацию муниципальной  программы: "]
[null,null,null,null,null,null,null,null,null,"Критерий эффективности реализации муниципальной  программы: "]
[null,null,null,null,null,null,null,null,null,null,"Критерий выполнения в рамках программы основных показателей стратегии и (или) программы социально - экономического развития Тверской области:"]
[null,"_________________________________________________________________________________________________________                                                                                                                                                                                                                                                                      (наименование должности руководителя  главного администратора (администратора)   программы )",null,null,null,null,null,null,null,null,null,null,null,null,null,null,null,null,null,null,null,null,null,null,null,null,null,"____________                              _______________________                                                                                                                                                                                                                        (подпись)                                           (инициалы, фамилия)"]
[null,null,null,null,null,null,null,null,null,"«_______» ________________________ 20_____ г."]

{"sheet":"Диаграмма1","index":1,"n_rows":0,"n_cols":0,"rows_kept":0,"cut":false,"hidden":false,"merged":[]}

{"sheet":"Приложение 3","index":2,"n_rows":259,"n_cols":38,"rows_kept":259,"cut":false,"hidden":false,"merged":[[0,30,0,36],[1,30,1,36],[3,3,3,40],[4,3,4,40],[5,3,5,40],[16,23,16,25],[16,26,16,27],[13,1,13,17],[6,3,6,40],[7,3,7,40],[8,3,8,40],[10,9,10,40],[11,9,11,40],[13,18,13,27],[13,28,16,28],[13,29,16,29],[13,30,15,38],[14,1,16,3],[14,4,16,5],[14,6,16,7],[14,8,14,17],[15,20,16,20],[15,21,16,21],[15,22,16,22],[15,8,16,9],[15,10,16,10],[15,11,16,12],[15,13,16,17],[15,18,16,19]]}
[]
[null,null,null,null,null,null,null,null,null,null,null,null,null,null,null,null,null,null,null,null,null,null,null,null,null,null,null,null,null,null,"Приложение 1 к   муниципальной программе Весьегонского муниципального округа Тверской области  \"Развитие системы образования Весьегонского муниципального округа Тверской области\"  на 2023-2028 годы от 30.12.2022 № 608"]
[]
[]
[null,null,null,"Характеристика   муниципальной   программы Весьегонского муниципального округа  Тверской области"]
[null,null,null,"\"Развитие системы образования Весьегонского муниципального округа Тверской области\" на 2023-2028 годы\""]
[null,null,null,"(наименование муниципальной  программы)"]
[null,null,null,"Главный администратор  (администратор) муниципальной  программы   -   Отдел образования  администрации Весьегонского муниципального округа Тверской области "]
[null,null,null,"                                                                                                                                                                                                                                            "]
[null,null,null,null,null,null,null,null,null,"Принятые обозначения и сокращения:"]
[null,null,null,null,null,null,null,null,null,"1.Программа - муниципальная  программа Весьегонского муниципального округа Тверской области"]
[null,null,null,null,null,null,null,null,null,"2. Подпрограмма  - подпрограмма муниципальной  программы  Весьегонского муниципального округа Тверской области "]
[]
[null,"Коды бюджетной классификации ",null,null,null,null,null,null,null,null,null,null,null,null,null,null,null,null,"Дополнительный аналитический код",null,null,null,null,null,null,null,null,null,"Цели программы, подпрограммы,  задачи  подпрограммы, мероприятия подпрограммы, административные мероприятия  и их показатели","Единица  измерения"]
[null,"код администратора  программы ",null,null,"раздел",null,"подраздел",null,"код целевой статьи расхода бюджета"]
[null,null,null,null,null,null,null,null,"программа",null,"подпрограмма","задача подпрограммы",null,"направление расходов",null,null,null,null,"программа",null,"подпрограмма","цель программы","задача программы"]
[null,null,null,null,null,null,null,null,null,null,null,null,null,null,null,null,null,null,null,null,null,null,null,"мероприятия",null,null,"показатели",null,null,null,2023,2024,2025,2026,2027,2028,"значение","год  достижения"]
[null,1,2,3,4,5,6,7,8,9,10,11,12,13,14,15,16,17,18,19,20,21,22,23,24,25,26,27,28,29,30,31,32,null,null,null,33,34]
["          ",8,0,5,0,0,0,0,1,7,0,0,0,0,0,0,0,0,1,7,0,0,0,0,0,0,0,0,"Программа , всего ","рублей",{"$f":"AE29+AE62+AE133+AE174+AE224+AE237+AE245","v":190970103},179452196,177682931,177682931,177682931,177682931,{"$f":"AE19+AF19+AG19+AH19+AI19+AJ19","v":1081154023},"2023-2028"]
[null,8,0,5,0,0,0,0,1,7,0,0,0,0,0,0,0,0,1,7,0,1,0,0,0,0,0,0," Цель:   повышение качества и доступности предоставляемых образовательных услуг населению Весьегонского муниципального округа  Тверской области за счет эффективного использования материально-технических, кадровых, финансовых и управленческих ресурсов.",null,null,null,null,null,null,null,null,"2023-2028"]
[null,8,0,5,0,0,0,0,1,7,0,0,0,0,0,0,0,0,1,7,0,1,0,0,0,0,0,1," Показатель 1. Реализаация  мероприятий национального проекта « Образование»\n\n","да - 1, нет - 0",1,1,1,1,1,1,1,"2023-2028"]
[null,8,0,5,0,0,0,0,1,7,0,0,0,0,0,0,0,0,1,7,0,1,0,0,0,0,0,2,"Показатель 2. Уровень удовлетворенности населения Весьегонского муниципального округа качеством предоставления услуг в области дошкольного  образования","%",90,90,90,90,90,90,90,"2023-2028"]
[null,8,0,5,0,0,0,0,1,7,0,0,0,0,0,0,0,0,1,7,0,1,0,0,0,0,0,3,"Показатель3.Уровень удовлетворенности населения Весьегонского муниципального округа качеством услуг общего образования","%",88,90,90,90,90,90,90,"2023-2028"]
[null,8,0,5,0,0,0,0,1,7,0,0,0,0,0,0,0,0,1,7,0,1,0,0,0,0,0,4,"Показатель 4. Уровень удовлетворенности населения Весьегонского муниципального округа услугами дополнительного образования .","%",90,92,92,93,93,94,94,"2023-2028"]
[null,8,0,5,0,0,0,0,1,7,0,0,0,0,0,0,0,0,1,7,0,1,0,0,0,0,0,5,"Показатель 5. Доля образовательных организаций, техническое состояние которых является удовлетворительным","%",100,100,100,100,100,100,85,"2023-2028"]
[null,8,0,5,0,0,0,0,1,7,0,0,0,0,0,0,0,0,1,7,0,1,0,0,0,0,0,6,"Показатель 6. Улучшение показателей здоровья детей в образовательных организациях Весьегонского муниципального округа","да - 1, нет - 0",1,1,1,1,1,1,1,"2023-2028"]
[null,8,0,5,0,0,0,0,1,7,0,0,0,0,0,0,0,0,1,7,0,1,0,0,0,0,0,7,"Показатель 7. Соответствие сайтов образовательных организаций  новым требованиям Рособрнадзора","да - 1, нет - 0",1,1,1,1,1,1,1,"2023-2028"]
[null,8,0,5,0,0,0,0,1,7,0,0,0,0,0,0,0,0,1,7,0,1,0,0,0,0,0,8,"Показатель 8 . Соответствие образовательных организаций Весьегонского муниципального округа новым требованиям САНПиН и эпидемической ситуации","да - 1, нет - 0",1,1,1,1,1,1,1,"2023-2028"]
[null,8,0,5,0,0,0,0,1,7,0,0,0,0,0,0,0,0,1,7,1,0,0,0,0,0,0,0,"Подпрограмма 1  \" Организация  дошкольного образования\"","рублей",{"$f":"AE30+AE39","v":51896784},{"$f":"AF30+AF39","v":49251342},49251342,49251342,49251342,49251342,{"$f":"AJ29+AI29+AH29+AG29+AF29+AE29","v":298153494},"2023-2028"]
[null,8,0,5,0,7,0,1,1,7,1,0,1,0,0,0,0,0,1,7,1,0,1,0,0,0,0,0,"Задача 1.Организация предоставления общедоступного бесплатного дошкольного образования на территории Весьегонского муниципального  округа  Тверской области за счет средств регионального бюджета","рублей",{"$f":"AE31+AE35","v":23040100},{"$f":"AF31+AF35","v":23040100},23040100,23040100,23040100,23040100,{"$f":"AE30+AF30+AG30+AH30+AI30+AJ30","v":138240600},"2023-2028"]
[null,8,0,5,0,7,0,1,1,7,1,0,1,1,0,7,4,0,1,7,1,0,1,1,1,0,0,0," Мероприятие 1.1.Субвенции на обеспечение государственных гарантий реализации прав на получение общедоступного и бесплатного дошкольного образования в муниципальных дошкольных образовательных организациях Тверской области","рублей",21653100,21653100,21653100,21653100,21653100,21653100,{"$f":"AE31+AF31+AG31+AH31+AI31+AJ31","v":129918600},"2023-2028"]
[null,8,0,5,0,7,0,1,1,7,1,0,1,1,0,7,4,0,1,7,1,0,1,1,1,0,0,1,"Показатель 1. Доля  дошкольных образовательных организаций , где введен эффективный контракт","%",100,100,100,100,100,100,100,"2023-2028"]
[null,8,0,5,0,7,0,1,1,7,1,0,1,1,0,7,4,0,1,7,1,0,1,1,1,0,0,2,"Показатель. 2 Отношение среднемесячной заработной платы педагогических работников муниципальных дошкольных образовательных учреждений к среднемесячной  заработной плате организаций общего образования в Весьегонском муниципальном округе  Тверской области ","%",100,100,100,100,100,100,100,"2023-2028"]
[null,8,0,5,0,7,0,1,1,7,1,0,1,1,0,7,4,0,1,7,1,0,1,1,1,0,0,3,"Показатель 3. Наличие  просроченной кредиторской задолженности  дошкольных образовательных организаций","да - 1, нет - 0",0,0,0,0,0,0,0,"2023-2028"]
[null,8,0,5,1,0,0,4,1,7,1,0,1,1,0,5,0,0,1,7,1,0,1,1,2,0,0,0,"Мероприятие 1.2. Субвенция на осуществление государственных полномочий по предоставлению  компенсации части родительской платы за присмотр и уход за ребенком в муниципальных образовательных организациях и иных образовательных организациях (за исключением государственных образовательных организаций ), реализующих  общеобразовательную программу дошкольного образования.","рублей",1387000,1387000,1387000,1387000,1387000,1387000,{"$f":"AE35+AF35+AG35+AH35+AI35+AJ35","v":8322000},"2023-2028"]
[null,8,0,5,1,0,0,4,1,7,1,0,1,1,0,5,0,0,1,7,1,0,1,1,2,0,0,1,"Показатель 1. Численность родителей, получающих компенсацию на первого ребенка","чел.",178,180,180,180,180,180,1078,"2023-2028"]
[null,8,0,5,1,0,0,4,1,7,1,0,1,1,0,5,0,0,1,7,1,0,1,1,2,0,0,2,"Показатель 2. Численность родителей получающих компенсацию на второго ребенка","чел.",168,170,170,170,170,170,1018,"2023-2028"]
[null,8,0,5,1,0,0,4,1,7,1,0,1,1,0,5,0,0,1,7,1,0,1,1,2,0,0,3,"Показатель 3. Численность родителей получающих компенсацию на третьего и последующих детей","чел.",57,60,60,60,60,60,357,"2023-2028"]
[null,8,0,5,0,7,0,1,1,7,1,0,2,0,0,0,0,0,1,7,1,0,2,0,0,0,0,0,"Задача 2  Организация предоставления общедоступного бесплатного дошкольного образования на территории Весьегонского муниципального округа  Тверской области за счет средств местного бюджета","рублей",{"$f":"AE42+AE54+AE57","v":28856684},{"$f":"AF42+AF54+AF57","v":26211242},26211242,26211242,26211242,26211242,{"$f":"AE39+AF39+AG39+AH39+AI39+AJ39","v":159912894},"2023-2028"]
[null,8,0,5,0,7,0,1,1,7,1,0,2,0,0,0,0,0,1,7,1,0,2,0,0,0,0,1,"Показатель 1. Количество детей Весьегонского муниципального округа, посещающих  дошкольные  образовательные организации ","чел.",320,320,320,320,320,320,320,"2023-2028"]
[null,8,0,5,0,7,0,1,1,7,1,0,2,0,0,0,0,0,1,7,1,0,2,0,0,0,0,2,"Показатель 2. Уровень удовлетворенности населения качеством предоставляемых услуг дошкольного образования","%",90,90,90,90,90,90,90,"2023-2028"]
[null,8,0,5,0,7,0,1,1,7,1,0,2,2,0,2,1,0,1,7,1,0,2,2,1,0,0,0,"Мероприятие 2.1. Обеспечение деятельности дошкольных образовательных организаций","рублей",25415582,23170140,23170140,23170140,23170140,23170140,{"$f":"AE42+AF42+AG42+AH42+AI42+AJ42","v":141266282},"2023-2028"]
[null,8,0,5,0,7,0,1,1,7,1,0,2,2,0,2,1,0,1,7,1,0,2,2,1,0,0,1,"Показатель 1.  Увеличение охвата детей дошкольным образованием","%",82,86,86,87,87,88,88,"2023-2028"]
[null,8,0,5,0,7,0,1,1,7,1,0,2,2,0,2,2,0,1,7,1,0,2,2,2,0,0,0,"Мероприятие  2.2.  Внедрение федеральных государственных образовательных стандартов дошкольного образования (далее ФГОС);","рублей",0,0,0,0,0,0,0,"2023-2028"]
[null,8,0,5,0,7,0,1,1,7,1,0,2,2,0,2,2,0,1,7,1,0,2,2,2,0,0,1,"Показатель 1. Обновление требований к условиям предоставления услуг дошкольного образования и мониторинг их выполнения","да - 1, нет - 0",1,1,1,1,1,1,1,"2023-2028"]
[null,8,0,5,0,7,0,1,1,7,1,0,2,2,0,2,2,0,1,7,1,0,2,2,2,0,0,2,"Показатель 2. Доля дошкольных  образовательных организаций перешедших на новый государственный образовательный стандарт","%",100,100,100,100,100,100,100,"2023-2028"]
[null,8,0,5,0,7,0,1,1,7,1,0,2,2,0,2,2,0,1,7,1,0,2,2,2,0,0,3," Показатель 3. .Внедрение системы оценки качества дошкольного образования","да - 1, нет - 0",1,1,1,1,1,1,1,"2023-2028"]
[null,8,0,5,0,7,0,1,1,7,1,0,2,2,0,2,2,0,1,7,1,0,2,2,2,0,0,4,"Показатель 4. Доля педагогических работников, прошедших курсы повышения квалификации","%",60,80,80,81,81,83,83,"2023-2028"]
[null,8,0,5,0,7,0,1,1,7,1,0,2,2,0,2,2,0,1,7,1,0,2,2,2,0,0,5,"Показатель 5. Доля педагогических работников, имеющих квалификационную категорию.","%",40,50,50,54,54,56,56,"2023-2028"]
[null,8,0,5,0,7,0,1,1,7,1,0,2,2,0,2,2,0,1,7,1,0,2,2,2,0,0,6,"Показатель 6. Для педагогов, являющихся молодыми специалистами или педагогическими работниками до 30 лет","%",10,15,15,15,15,15,15,"2023-2028"]
[null,8,0,5,0,7,0,1,1,7,1,0,2,2,0,2,2,0,1,7,1,0,2,2,2,0,0,7," Показатель 7. Доля  дошкольных образовательных организаций, в которых оценка деятельности  всех категорий работников осуществляется на основании показателей эффективности деятельности ","%",100,100,100,100,100,100,100,"2023-2028"]
[null,8,0,5,0,7,0,1,1,7,1,0,2,2,0,2,2,0,1,7,1,0,2,2,2,0,0,8,"Показатель 8.Корректировка показателей качества профессиональной деятельности педагогических и работников муниципальных дошкольных образовательных организаций","да - 1, нет - 0",1,1,1,1,1,1,1,"2023-2028"]
[null,8,0,5,0,7,0,1,1,7,1,0,2,2,0,2,2,0,1,7,1,0,2,2,2,0,0,9,"Показатель 9.Корректировка коллективных, трудовых договоров, должностных инструкций для муниципальных дошкольных  образовательных организаций","да - 1, нет - 0",1,1,1,1,1,1,1,"2023-2028"]
[null,8,0,5,0,7,0,1,1,7,1,0,2,2,0,2,3,0,1,7,1,0,2,2,3,0,0,0,"Мероприятие 2.3.Организация питания в дошкольных образовательных организациях","рублей",3142626,2766626,2766626,2766626,2766626,2766626,{"$f":"AE54+AF54+AG54+AH54+AI54+AJ54","v":16975756},"2023-2028"]
[null,8,0,5,0,7,0,1,1,7,1,0,2,2,0,2,3,0,1,7,1,0,2,2,3,0,0,1,"Показатель1. Выполнение норм питания в образовательной организации. ","да - 1, нет - 0",1,1,1,1,1,1,1,"2023-2028"]
[null,8,0,5,0,7,0,1,1,7,1,0,2,2,0,2,3,0,1,7,1,0,2,2,3,0,0,2,"Показатель 2. Доля израсходованных средств на организацию полноценного питания в  дошкольных образовательных организациях ","%",100,100,100,100,100,100,100,"2023-2028"]
[null,8,0,5,0,7,0,2,1,7,1,0,2,2,0,2,4,0,1,7,1,0,2,2,4,0,0,0,"Мероприятие 2.4. Организация питания в дошкольной группе","рублей",298476,274476,274476,274476,274476,274476,{"$f":"AE57+AF57+AG57+AH57+AI57+AJ57","v":1670856},"2023-2028"]
[null,8,0,5,0,7,0,2,1,7,1,0,2,2,0,2,4,0,1,7,1,0,2,2,4,0,0,1,"Показатель1. Выполнение норм питания в  дошкольной группе общеобразовательной организации. ","да - 1, нет - 0",1,1,1,1,1,1,1,"2023-2028"]
[null,8,0,5,0,7,0,2,1,7,1,0,2,2,0,2,4,0,1,7,1,0,2,2,4,0,0,2,"Показатель 2. Доля израсходованных средств на организацию полноценного питания в  дошкольных группах общеобразовательных организаций ","%",100,100,100,100,100,100,100,"2023-2028"]
[null,8,0,5,0,7,0,2,1,7,1,0,2,2,0,2,5,0,1,7,1,0,2,2,5,0,0,0,"Мероприятие  2.5. Погашение кредиторской задолженности ","рублей",0,0,0,0,0,0,{"$f":"AE60","v":0},"2023-2028"]
[null,8,0,5,0,7,0,2,1,7,1,0,2,2,0,2,5,0,1,7,1,0,2,2,5,0,0,1,"Показатель 1 . Доля учреждений, погасивших кредиторскую задолженность ","%",100,100,100,100,100,100,100,"2023-2028"]
[null,8,0,5,0,7,0,2,1,7,2,0,0,0,0,0,0,0,1,7,2,0,0,0,0,0,0,0,"Подпрограмма 2  \" Совершенствование системы общего образования\"","рублей",{"$f":"AE63+AE68+AE91","v":118517034},{"$f":"AF63+AF68+AF91","v":112686362},111187097,111187097,111187097,111187097,{"$f":"AE62+AF62+AG62+AH62+AI62+AJ62","v":675951784},"2023-2028"]
[null,8,0,5,0,7,0,2,1,7,2,0,1,0,0,0,0,0,1,7,2,0,1,0,0,0,0,0,"Задача 1. Организация предоставления общедоступного бесплатного дошкольного образования на территории Весьегонского муниципального округа Тверской области","рублей",{"$f":"AE64","v":1242434},{"$f":"AF64","v":1120627},1120627,1120627,1120627,1120627,{"$f":"AE63+AF63+AG63+AH63+AI63+AJ63","v":6845569},"2023-2028"]
[null,8,0,5,0,7,0,2,1,7,2,0,1,2,0,1,1,0,1,7,2,0,1,1,1,0,0,0," Мероприятие 1.1.Обеспечение деятельности групп дошкольного  образования  детей","рублей",1242434,1120627,1120627,1120627,1120627,1120627,{"$f":"AE64+AF64+AG64+AH64+AI64+AJ64","v":6845569},"2023-2028"]
[null,8,0,5,0,7,0,2,1,7,2,0,1,2,0,1,1,0,1,7,2,0,1,1,1,0,0,1,"Показатель 1.  Введение эффективного контракта","%",100,100,100,100,100,100,100,"2023-2028"]
[null,8,0,5,0,7,0,2,1,7,2,0,1,2,0,1,1,0,1,7,2,0,1,1,1,0,0,2,"Показатель. 2 Отношение среднемесячной заработной платы педагогических работников муниципальных дошкольных  группах общеобразовательных организаций к среднемесячной  заработной плате организаций общего образования в Весьегонском муниципальном округе  Тверской области ","%",100,100,100,100,100,100,100,"2023-2028"]
[null,8,0,5,0,7,0,2,1,7,2,0,1,2,0,1,1,0,1,7,2,0,1,1,1,0,0,3,"Показатель 3. Наличие  просроченной кредиторской задолженности в дошкольной группе","да - 1, нет - 0",1,1,1,1,1,1,1,"2023-2028"]
[null,8,0,5,0,7,0,2,1,7,2,0,2,0,0,0,0,0,1,7,2,0,2,0,0,0,0,0,"Задача 2. Предоставление общедоступного и бесплатного общего, основного общего, среднего (полного) общего образования по основным образовательным программам муниципальными общеобразовательными организациями Весьегонского муниципального округа Тверской области за счет средств регионального бюджета","рублей",{"$f":"AE69+AE78+AE80+AE89","v":82831800},{"$f":"AF69+AF78+AF80+AF89","v":83279000},83152200,83152200,83152200,83152200,{"$f":"AE68+AF68+AG68+AH68+AI68+AJ68","v":498719600},"2023-2028"]
[null,8,0,5,0,7,0,2,1,7,2,0,2,1,0,7,5,0,1,7,2,0,2,0,0,0,0,0,"Мероприятие 2.1.Субвенции на обеспечение государственных гарантий реализации прав на получение общедоступного и бесплатного дошкольного, начального общего, основного общего, среднего общего образования в муниципальных образовательных организациях, обеспечение дополнительного образования детей в муниципальных общеобразовательных организациях Тверской области","рублей",73947800,73947800,73947800,73947800,73947800,73947800,{"$f":"AE69+AF69+AI69+AJ69","v":295791200},"2023-2028"]
[null,8,0,5,0,7,0,2,1,7,2,0,2,1,0,7,5,0,1,7,2,0,2,2,1,0,0,1,"Показатель 1. Наличие нормативного акта ( приказ по отделу образования о распределении субвенций на заработную плату  и учебные расходы)","да - 1, нет - 0",1,1,1,1,1,1,1,"2023-2028"]
[null,8,0,5,0,7,0,2,1,7,2,0,2,1,0,7,5,0,1,7,2,0,2,2,1,0,0,2,"Показатель 2. Доля  общеобразовательных организаций , где введен эффективный контракт","%",100,100,100,100,100,100,100,"2023-2028"]
[null,8,0,5,0,7,0,2,1,7,2,0,2,1,0,7,5,0,1,7,2,0,2,2,1,0,0,3,"Показатель 3. Отношение среднемесячной заработной платы педагогических работников муниципальных  общеобразовательных организаций к среднемесячной  заработной плате в экономике   Тверской области ","%",100,100,100,100,100,100,100,"2023-2028"]
[null,8,0,5,0,7,0,2,1,7,2,0,2,2,0,2,2,0,1,7,2,0,2,2,1,0,0,0," Мероприятие 2.2.Приобретение учебно-лабораторного оборудования  в муниципальных общеобразовательных организациях","да - 1, нет - 0",1,1,1,1,1,1,1,"2023-2028"]
[null,8,0,5,0,7,0,2,1,7,2,0,2,2,0,2,2,0,1,7,2,0,2,2,2,0,0,1," Показатель 1. Доля учебных расходов, направленных на приобретение  учебников и учебно-лабораторного оборудования  в муниципальных общеобразовательных организациях","%",42,42,42,42,42,42,42,"2023-2028"]
[null,8,0,5,0,7,0,2,1,7,2,0,2,2,0,2,2,0,1,7,2,0,2,2,2,0,0,2,"Показатель 2. Доля муниципальных общеобразовательных учреждений Весьегонского муниципального округа , получивших новое учебно-лабораторное оборудование ","%",80,90,90,90,90,90,90,"2023-2028"]
[null,8,0,5,0,7,0,2,1,7,2,0,2,2,0,2,3,0,1,7,2,0,2,2,3,0,0,0," Мероприятие 2.3.Обеспечение оснащенности общеобразовательных организаций в соответствие с требованиями федеральных государственных образовательных стандартов начального общего и основного общего образования  (от  %  учебных расходов)","%",40,40,40,40,40,40,40,"2023-2028"]
[null,8,0,5,0,7,0,2,1,7,2,0,2,2,0,2,3,0,1,7,2,0,2,2,3,0,0,1,"Показатель1. Доля общеобразовательных организаций, оснащенных в соответствии с требованиями федеральных государственных образовательных стандартов","%",90,90,90,95,98,100,100,"2023-2028"]
[null,8,0,5,0,7,0,2,1,7,2,0,2,"L",3,0,4,1,1,7,2,0,2,2,4,0,0,0,"Мероприятие 2.4. Субсидии на организацию бесплатного горячего питания обучающихся, получающих начальное общее образование в муниципальных образовательных организациях","рублей",3828500,3828500,3701700,3701700,3701700,3701700,{"$f":"AE78+AF78+AG78+AH78+AI78+AJ78","v":22463800},"2023-2028"]
[null,8,0,5,0,7,0,2,1,7,2,0,2,"L",3,0,4,1,1,7,2,0,2,2,4,0,0,1,"Показатель 1. Доля обучающихся, получающих начальное общее образование в государственных и муниципальных образовательных организациях, получающих бесплатное горячее питание, к общему количеству обучающихся, получающих начальное общее образование в государственных и муниципальных образовательных организациях.","%",100,100,100,100,100,100,100,"2023-2028"]
[null,8,0,5,0,7,0,2,1,7,2,0,2,2,0,2,5,0,1,7,2,0,2,2,5,0,0,0,"Мероприятие 2.5.Субвенции на выплату ежемесячного денежного вознаграждения за классное руководство педагогическим работникам муниципальных образовательных организаций","рублей",4827000,4827000,4827000,4827000,4827000,4827000,{"$f":"AE80+AF80+AG80+AH80+AI80+AJ80","v":28962000},"2023-2028"]
[null,8,0,5,0,7,0,2,1,7,2,0,2,2,0,2,5,0,1,7,2,0,2,2,5,0,0,1,"Показатель1. Количество педагогов , получившихвознаграждение  за счет субсидии  ","чел.",null,63,63,63,63,63,63,"2023-2028"]
[null,8,0,5,0,7,0,2,1,7,2,0,2,2,0,2,6,0,1,7,2,0,2,2,6,0,0,0,"Мероприятие 2.6. Реализация национального проекта « Образование» в общеобразовательных организациях Весьегонского муниципального округа ","да - 1, нет — 0",1,1,1,1,1,1,1,"2023-2028"]
[null,8,0,5,0,7,0,2,1,7,2,0,2,2,0,2,6,0,1,7,2,0,2,2,6,0,0,1,"Показатель 1. Участие в проекте по направлению «Современная школа»","да - 1, нет — 0",1,1,1,1,1,1,1,"2023-2028"]
[null,8,0,5,0,7,0,2,1,7,2,0,2,2,0,2,6,0,1,7,2,0,2,2,6,0,0,2,"Показатель 2. Участие в проекте по направлению « Успех каждого ребенка»","да - 1, нет — 0",1,1,1,1,1,1,1,"2023-2028"]
[null,8,0,5,0,7,0,2,1,7,2,0,2,2,0,2,6,0,1,7,2,0,2,2,6,0,0,3,"Показатель 3. Участие в проекте по направлению « Цифровая образовательная среда","да - 1, нет — 0",1,1,1,1,1,1,1,"2023-2028"]
[null,8,0,5,0,7,0,2,1,7,2,0,2,2,0,2,6,0,1,7,2,0,2,2,6,0,0,4,"Показатель 4. Участие в проекте по направлению «Учитель будущего»","да - 1, нет — 0",1,1,1,1,1,1,1,"2023-2028"]
[null,8,0,5,0,7,0,2,1,7,2,0,2,2,0,2,6,0,1,7,2,0,2,2,6,0,0,5,"Показатель 5. Участие в проекте по направлению «Социальная активность обучающихся» и \"Патриотическое воспитание\"","да - 1, нет — 0",1,1,1,1,1,1,1,"2023-2028"]
[null,8,0,5,0,7,0,2,1,7,2,0,2,2,0,2,6,0,1,7,2,0,2,2,6,0,0,6,"Показатель 6. Участие в проекте по направлению «Содействие в оказании помощи семьям, имеющим детей»","да - 1, нет — 0",1,1,1,1,1,1,1,"2023-2028"]
[null,8,0,5,0,7,0,2,1,7,2,"E","B",5,1,7,9,0,1,7,2,0,2,2,7,0,0,0,"Мероприятие 2.7. Субвенции местным бюджетам на проведение мероприятий по обеспечению деятельности  советников директора по воспитанию и взаимодействию с детскими общественными объединениями в общеобразовательных организациях","рублей",228500,675700,675700,675700,675700,675700,{"$f":"AE89+AF89+AG89+AH89+AI89+AJ89","v":3607000},"2023-2028"]
[null,8,0,5,0,7,0,2,1,7,2,"E","B",5,1,7,9,0,1,7,2,0,2,2,7,0,0,0,"Показатель 1 Количество советников  директора по  воспитанию","чел.",4,4,4,4,4,4,4,"2023-2028"]
[null,8,0,5,0,7,0,2,1,7,2,0,3,0,0,0,0,0,1,7,2,0,3,0,0,0,0,0,"Задача 3. Предоставление общедоступного и бесплатного общего, основного общего, среднего (полного) общего образования по основным образовательным программам муниципальными общеобразовательными организациями Весьегонского муниципального округа  Тверской области ","рублей",{"$f":"AE105+AE110+AE117+AE126+AE129","v":34442800},{"$f":"AF105+AF110+AF117+AF126+AF129","v":28286735},26914270,26914270,26914270,26914270,170386615,"2023-2028"]
[null,8,0,5,0,7,0,2,1,7,2,0,3,0,0,0,0,0,1,7,2,0,3,0,0,0,0,1,"Показатель 1. Уровень удовлетворенности населения качеством предоставляемых услуг  общего образования","%",89,89,90,90,90,90,90,"2023-2028"]
[null,8,0,5,0,7,0,2,1,7,2,0,3,0,0,0,0,0,1,7,2,0,3,0,0,0,0,2,"Показатель 2. Переход на государственные образовательные стандарты начального и основного общего образования","да - 1, нет - 0",1,1,1,1,1,1,1,"2023-2028"]
[null,8,0,5,0,7,0,2,1,7,2,0,3,0,0,0,0,0,1,7,2,0,3,0,0,0,0,3,"Показатель 3.Доля  общеобразовательных организаций, перешедших на новые государственные образовательные стандарты.","%",100,100,100,100,100,100,100,"2023-2028"]
[null,8,0,5,0,7,0,2,1,7,2,0,3,0,0,0,0,0,1,7,2,0,3,0,0,0,0,4," Показатель 4. Отношение среднего балла единого государственного экзамена (в расчете на 1 предмет)  в школе с лучшими результатами единого государственного экзамена к среднему баллу единого государственного экзамена (в расчете на 1 предмет) в школе с худшими результатами единого государственного экзамена","%",0.8,0.85,0.85,0.85,0.85,0.85,0.85,"2023-2028"]
[null,8,0,5,0,7,0,2,1,7,2,0,3,0,0,0,0,0,1,7,2,0,3,0,0,0,0,5,"Показатель 5. Наличие плана мероприятий  ( \"дорожной карты\") развития математического образования в муниципалитете и поддержке школ, получивших низкий баллы на итоговой аттестации ","да - 1, нет - 0",1,1,1,1,1,1,1,"2023-2028"]
[null,8,0,5,0,7,0,2,1,7,2,0,3,2,0,3,1,0,1,7,2,0,3,3,1,0,0,0,"Мероприятие 3.1.Создание условий для  обучения детей – инвалидов и детей с ОВЗ. Создание условий для модернизации общеобразовательных учреждений путем организации в них дистанционного обучения  обучающихся ","рублей",0,0,0,0,0,0,0,"2023-2028"]
[null,8,0,5,0,7,0,2,1,7,2,0,3,2,0,3,1,0,1,7,2,0,3,3,1,0,0,1," Показатель 1. Доля общеобразовательных учреждений, имеющих доступную среду для детей –инвалидов и детей с ОВЗ","%",50,60,60,60,70,70,70,"2023-2028"]
[null,8,0,5,0,7,0,2,1,7,2,0,3,2,0,3,1,0,1,7,2,0,3,3,1,0,0,2,"Показатель2. Доля общеобразовательных организаций, предоставляющих услуги  дистанционного образования","%",50,50,50,50,50,50,50,"2023-2028"]
[null,8,0,5,0,7,0,2,1,7,2,0,3,2,0,3,1,0,1,7,2,0,3,3,1,0,0,3,"Показатель 3.Обеспечение информационного взаимодействия образовательных учреждений района с целью создания единой информационной среды, предназначенной для формирования методических и справочных электронных ресурсов по вопросам  ФГОС ООО.","да - 1, нет - 0",1,1,1,1,1,1,1,"2023-2028"]
[null,8,0,5,0,7,0,2,1,7,2,0,3,2,0,3,1,0,1,7,2,0,3,3,1,0,0,4,"Показатель 4.Доля образовательных организаций, вовлеченных в единую информационную среду","%",100,100,100,100,100,100,100,"2023-2028"]
[null,8,0,5,0,7,0,2,1,7,2,0,3,2,0,3,1,0,1,7,2,0,3,3,1,0,0,5,"Показатель 5.  Совершенствование муниципальной системы мониторинга уровня подготовки и социализации школьников ","да - 1, нет - 0",1,1,1,1,1,1,1,"2023-2028"]
[null,8,0,5,0,7,0,2,1,7,2,0,3,2,0,3,1,0,1,7,2,0,3,3,1,0,0,6,"Показатель 6. Разработка и реализация муниципальных мероприятий поддержки школ, работающих в сложных социальных условиях","да - 1, нет - 0",1,1,1,1,1,1,1,"2023-2028"]
[null,8,0,5,0,7,0,2,1,7,2,0,3,2,0,3,1,0,1,7,2,0,3,3,1,0,0,7,"Показатель   7. Доля  общеобразовательных  организаций  Весьегонского муниципального округа Тверской области, в которых оценка деятельности общеобразовательных организаций, их руководителей и основных категорий работников осуществляется на основании показателей эффективности деятельности ","%",100,100,100,100,100,100,100,"2023-2028"]
[null,8,0,5,0,7,0,2,1,7,2,0,3,2,0,3,2,0,1,7,2,0,3,3,2,0,0,0,"Мероприятие 3.2. Обеспечение деятельности общеобразовательных организаций  ","рублей",28707377,21873962,20501497,20501497,20501497,20501497,{"$f":"AE105+AF105+AG105+AH105+AI105+AJ105","v":132587327},"2023-2028"]
[null,8,0,5,0,7,0,2,1,7,2,0,3,2,0,3,2,0,1,7,2,0,3,3,2,0,0,1," Показатель 1. Доля общеобразовательных организаций, в которых оценка деятельности  всех категорий работников осуществляется на основании показателей эффективности деятельности ","%",100,100,100,100,100,100,100,"2023-2028"]
[null,8,0,5,0,7,0,2,1,7,2,0,3,2,0,3,2,0,1,7,2,0,3,3,2,0,0,2,"Показатель 2. Наличие кредиторской задолженности","да - 1, нет - 0",1,0,0,0,0,0,0,"2023-2028"]
[null,8,0,5,0,7,0,2,1,7,2,0,3,2,0,3,2,0,1,7,2,0,3,3,2,0,0,3,"Показатель 3.Корректировка показателей качества профессиональной деятельности педагогических и работников муниципальных общеобразовательных организаций. Корректировка коллективных, трудовых договоров, должностных инструкций для муниципальных общеобразовательных  организаций","да - 1, нет - 0",1,1,1,1,1,1,1,"2023-2028"]
[null,8,0,5,0,7,0,2,1,7,2,0,3,2,0,3,2,0,1,7,2,0,3,3,2,0,0,4,"Показатель 4. Доля молодых специалистов и педагогических работников до 30 лет ","%",10,10,10,11,12,12,12,"2023-2028"]
[null,8,0,5,0,7,0,2,1,7,2,0,3,"S",0,2,5,0,1,7,2,0,3,3,3,0,0,0,"Мероприятие 3.3. Создание условий для предоставления транспортных услуг населению в организации  транспортного обслуживания  населения в границах муниципального образования  в части обеспечения подвоза  учащихся, проживающих в сельской местности, к месту обучения и обратно за счет средств ме стного бюджета","рублей",4274223,4952773,4952773,4952773,4952773,4952773,{"$f":"AE110+AF110+AG110+AH110+AI110+AJ110","v":29038088},"2023-2028"]
[null,8,0,5,0,7,0,2,1,7,2,0,3,"S",0,2,5,0,1,7,2,0,3,3,3,0,0,1,"Показатель 1  Доля  охвата подвоза к месту обучения и обратно обучающихся, проживающих в сельской местности ","%",100,100,100,100,100,100,100,"2023-2028"]
[null,8,0,5,0,7,0,2,1,7,2,0,3,"S",0,2,5,0,1,7,2,0,3,3,3,0,0,2,"Показатель 2 Соответствие автобусов для подвоза учащихся, проживающих в сельской местности, к месту обучения и обратно  ГОСТ 33552-2015 «Автобусы для перевозки детей. Технические требования и методы испытаний», наличие лицензии на организацию перевозок.","%",100,100,100,100,100,100,100,"2023-2028"]
[null,8,0,5,0,7,0,2,1,7,2,0,3,"S",0,2,5,0,1,7,2,0,3,3,3,0,0,3,"Показатель 3. Оснащение автобусов для подвоза учащихся, проживающих в сельской местности, к месту обучения и обратно на основании постановления Правительства российской Федерации от 25. 08. 2008 № 641 аппаратурой спутниковой навигации ГЛОНАСС /GPS","%",100,100,100,100,100,100,100,"2023-2028"]
[null,8,0,5,0,7,0,2,1,7,2,0,3,"S",0,2,5,0,1,7,2,0,3,3,3,0,0,4,"Показатель 4. Оснащение автобусов для подвоза учащихся, проживающих в сельской местности, к месту обучения и обратно тахографами на основании приказа Министерства транспорта Российской Федерации от 26.10.2020 № 438 ","%",100,100,100,100,100,100,100,"2023-2028"]
[null,8,0,5,0,7,0,2,1,7,2,0,3,"S",0,2,5,0,1,7,2,0,3,3,3,0,0,5,"Показатель 5. Оснащение автобусов для подвоза учащихся, проживающих в сельской местности , к месту обучения и обратно  видеорегистраторами","%",100,100,100,100,100,100,100,"2023-2028"]
[null,8,0,5,0,7,0,2,1,7,2,0,3,"S",0,2,5,0,1,7,2,0,3,3,3,0,0,6,"Показатель 6.Использование автобусов не старше 10 лет с начала эксплуатации","%",100,100,100,100,100,100,100,"2023-2028"]
[null,8,0,5,0,7,0,2,1,7,2,0,3,1,0,2,5,0,1,7,2,0,3,3,4,0,0,0,"Мероприятие 3.4. Субсидии на  создание условий для предоставления транспортных услуг населению и организации транспортного обслуживания населения  в границах муниципального образования в части обеспечения подвоза учащихся, проживающих в сельской местности, к месту обучения и обратно","рублей",1341200,1341200,1341200,1341200,1341200,1341200,{"$f":"AE117+AF117+AG117+AH117+AI117+AJ117","v":8047200},"2023-2028"]
[null,8,0,5,0,7,0,2,1,7,2,0,3,1,0,2,5,0,1,7,2,0,3,3,4,0,0,1,"Показатель 1  Доля  охвата подвоза к месту обучения и обратно обучающихся, проживающих в сельской местности ","%",100,100,100,100,100,100,100,"2023-2028"]
[null,8,0,5,0,7,0,2,1,7,2,0,3,1,0,2,5,0,1,7,2,0,3,3,4,0,0,2,"Показатель2 Соответствие автобусов для подвоза учащихся, проживающих в сельской местности, к месту обучения и обратно  ГОСТ 33552-2015 «Автобусы для перевозки детей. Технические требования и методы испытаний», наличие лицензии на организацию перевозок.","%",100,100,100,100,100,100,100,"2023-2028"]
[null,8,0,5,0,7,0,2,1,7,2,0,3,1,0,2,5,0,1,7,2,0,3,3,4,0,0,3,"Показатель 3. Оснащение автобусов для подвоза учащихся, проживающих в сельской местности, к месту обучения и обратно на основании постановления Правительства российской Федерации от 25. 08. 2008 № 641 аппаратурой спутниковой навигации ГЛОНАСС /GPS","%",100,100,100,100,100,100,100,"2023-2028"]
[null,8,0,5,0,7,0,2,1,7,2,0,3,1,0,2,5,0,1,7,2,0,3,3,4,0,0,4,"Показатель 4. Оснащение автобусов для подвоза учащихся, проживающих в сельской местности, к месту обучения и обратно тахографами на основании приказа Министерства транспорта Российской Федерации от 26.10.2020 № 438 ","%",100,100,100,100,100,100,100,"2023-2028"]
[null,8,0,5,0,7,0,2,1,7,2,0,3,1,0,2,5,0,1,7,2,0,3,3,4,0,0,5,"Показатель 5. Оснащение автобусов для подвоза учащихся, проживающих в сельской местности , к месту обучения и обратно  видеорегистраторами","%",100,100,100,100,100,100,100,"2023-2028"]
[null,8,0,5,0,7,0,2,1,7,2,0,3,1,0,2,5,0,1,7,2,0,3,3,4,0,0,6,"Показатель 6. Использование автобусов не старше 10 лет с начала эксплуатации","%",100,100,100,100,100,100,100,"2023-2028"]
[null,8,0,5,0,7,0,2,1,7,2,0,3,2,0,3,5,0,1,7,2,0,3,3,5,0,0,0,"Мероприятие 3.5. Погашение просроченной кредиторской задолженности ","рублей ",0,0,0,0,0,0,{"$f":"AE124","v":0},"2023-2028"]
[null,8,0,5,0,7,0,2,1,7,2,0,3,2,0,3,5,0,1,7,2,0,3,3,5,0,0,1,"Показатель 1 Доля учреждений, погасивших кредиторскую задолженность","%",100,100,100,100,100,100,100,"2023-2028"]
[null,8,0,5,0,7,0,2,1,7,2,0,3,1,1,0,8,0,1,7,2,0,3,3,6,0,0,0,"Мероприятие 3.6. Субсидии  на организацию участия детей и подростков в социально значимых региональных проектах\n","рублей",97800,97800,97800,97800,97800,97800,{"$f":"AE126+AF126+AG126+AH126+AI126+AJ126","v":586800},"2023-2028"]
[null,8,0,5,0,7,0,2,1,7,2,0,3,1,1,0,8,0,1,7,2,0,3,3,6,0,0,1," Показатель 1. Доля обучающихся 8 классов муниципальных общеобразовательных организаций принявших участие  в социально значимых региональных проектах","%",100,100,100,100,100,100,{"$f":"AE127","v":100},"2023-2028"]
[null,8,0,5,0,7,0,2,1,7,2,0,3,2,0,3,7,0,1,7,2,0,3,3,6,0,0,2," Показатель 2. Доля обучающихся 7  классов муниципальных общеобразовательных организаций принявших участие  в социально значимых региональных проектах","%",100,100,100,100,100,100,{"$f":"AE128","v":100},"2023-2028"]
[null,8,0,5,0,7,0,2,1,7,2,0,3,"S",1,0,8,0,1,7,2,0,3,3,7,0,0,0," Мероприятие 3.7. Софинансирование на организацию участия детей и подростков в социально значимых региональных проектах","рублей ",22200,21000,21000,21000,21000,21000,{"$f":"AE129+AF129+AG129+AH129+AI129+AJ129","v":127200},"2023-2028"]
[null,8,0,5,0,7,0,2,1,7,2,0,3,"S",1,0,8,0,1,7,2,0,3,3,7,0,0,1," Показатель 1. Доля обучающихся 8 классов муниципальных общеобразовательных организаций принявших участие  в социально значимых региональных проектах","%",100,100,100,100,100,100,100,"2023-2028"]
[null,8,0,5,0,7,0,2,1,7,2,0,3,2,0,3,9,0,1,7,2,0,3,3,8,0,0,0,"Мероприятие 3.8. Субсидии на посещение центра \"Россия - моя история\"\n","рублей",0,0,0,0,0,0,0,"2023-2028"]
[null,8,0,5,0,7,0,2,1,7,2,0,3,2,0,3,9,0,1,7,2,0,3,3,8,0,0,1," Показатель 1. Доля обучающихся 7  классов муниципальных общеобразовательных организаций принявших участие  в социально значимых региональных проектах","%",100,100,100,100,100,100,100,"2023-2028"]
[null,8,0,5,0,7,0,3,1,7,3,0,0,0,0,0,0,0,1,7,3,0,0,0,0,0,0,0,"Подпрограмма 3  \"Организация дополнительного образования детей\" ","рублей",{"$f":"AE134+AE154+AE157","v":8475202},{"$f":"AF134+AF154+AF157","v":9282574},9012574,9012574,9012574,9012574,{"$f":"AE133+AF133+AG133+AH133+AI133+AJ133","v":53808072},"2023-2028"]
[null,8,0,5,0,7,0,3,1,7,3,0,1,0,0,0,0,0,1,7,3,0,1,0,0,0,0,0,"Задача 1. Предоставление дополнительного образования муниципальными образовательными организациями","рублей",{"$f":"AE136+AE143","v":4875196},{"$f":"AF136+AF143","v":5682568},5412568,5412568,5412568,5412568,32182985,"2023-2028"]
[null,8,0,5,0,7,0,3,1,7,3,0,1,0,0,0,1,1,1,7,3,0,1,1,1,0,0,1,"Показатель 1. Уровень удовлетворенности населения качеством предоставляемых услуг  дополнительного  образования .","%",90,90,92,93,95,95,95,"2023-2028"]
[null,8,0,5,0,7,0,3,1,7,3,0,1,2,0,1,1,0,1,7,3,0,1,1,1,0,0,0," Мероприятие 1.1.Обеспечение деятельности организаций дополнительного образования детей","рублей",4836556,5643928,5373928,5373928,5373928,5373928,{"$f":"AE136+AF136+AG136+AH136+AI136+AJ136","v":31976196},"2023-2028"]
[null,8,0,5,0,7,0,3,1,7,3,0,1,2,0,1,1,0,1,7,3,0,1,1,1,0,0,1,"Показатель 1. Доля   организаций дополнительного образования, где введен эффективный контракт","%",100,100,100,100,100,100,100,"2023-2028"]
[null,8,0,5,0,7,0,3,1,7,3,0,1,2,0,1,1,0,1,7,3,0,1,1,1,0,0,2,"Показатель. 2 Отношение среднемесячной заработной платы педагогических работников муниципальных   организациях дополнительного образования  к среднемесячной  заработной плате организаций общего образования в Весьегонском муниципальном округе Тверской области ","%",90,90,90,90,90,90,90,"2023-2028"]
[null,8,0,5,0,7,0,3,1,7,3,0,1,2,0,1,1,0,1,7,3,0,1,1,1,0,0,3," Показатель 3. Доля  организаций дополнительного образования, в которых оценка деятельности  всех категорий работников осуществляется на основании показателей эффективности деятельности ","%",100,100,100,100,100,100,100,"2023-2028"]
[null,8,0,5,0,7,0,3,1,7,3,0,1,2,0,1,1,0,1,7,3,0,1,1,2,0,0,4,"Показатель4. Отсутствие кредиторской задолженности","да - 1, нет - 0",1,0,0,0,0,0,0,"2023-2028"]
[null,8,0,5,0,7,0,3,1,7,3,0,1,2,0,1,2,0,1,7,3,0,1,1,3,0,0,0,"Административное мероприятие 1.2. Корректировка показателей качества профессиональной деятельности педагогических и работников муниципальных  организаций дополнительного образования .","да - 1, нет - 0",1,1,1,1,1,1,1,"2023-2028"]
[null,8,0,5,0,7,0,3,1,7,3,0,1,2,0,1,3,0,1,7,3,0,1,1,3,0,0,0,"Административное мероприятие 1.3. Корректировка коллективных, трудовых договоров, должностных инструкций для муниципальных  организаций дополнительного образования ","да - 1, нет - 0",1,1,1,1,1,1,1,"2023-2028"]
[null,8,0,5,0,7,0,3,1,7,3,0,1,"S",0,6,9,0,1,7,3,0,1,1,4,0,0,0,"Мероприятие 1.4. Повышение заработной платы педагогическим работникам муниципальных организаций дополнительного образования за счет средств местного бюджета","рублей",38640,38640,38640,38640,38640,38640,{"$f":"AJ143+AI143+AH143+AG143+AF143+AE143","v":231840},"2023-2028"]
[null,8,0,5,0,7,0,3,1,7,3,0,1,"S",0,6,9,0,1,7,3,0,1,1,4,0,0,0,"Показатель1.  Соотношение значения достигнутой средней заработной платы педагогов дополнительного образования с доведенным до муниципального образования","%",100,100,100,100,100,100,100,"2023-2028"]
[null,8,0,5,0,7,0,3,1,7,3,0,1,2,0,1,5,0,1,7,3,0,1,1,5,0,0,0,"Административное мероприятие 1.5. Реализация Национального проекта « Образование» на территории Весьегонского муниципального округа Тверской области ",null,null,null,null,null,null,null,null,"2023-2028"]
[null,8,0,5,0,7,0,3,1,7,3,0,1,2,0,1,5,0,1,7,3,0,1,1,5,0,0,1,"Показатель1. Охват  обучающихся дополнительным образованием .","%",72,74,75,78,80,80,80,"2023-2028"]
[null,8,0,5,0,7,0,3,1,7,3,0,1,2,0,1,5,0,1,7,3,0,1,1,5,0,0,2,"Показатель 2. Лицензирование дошкольных образовательных учреждений и введение услуг дополнительного образования в МДОУ","%",37.5,50,87.5,86,86,86,86,"2023-2028"]
[null,8,0,5,0,7,0,3,1,7,3,0,1,2,0,1,6,0,1,7,3,0,1,1,6,0,0,0,"Административное мероприятие 1.6. Использование  муниципальной системы оценки качества дополнительного образования.","да - 1, нет - 0",1,1,1,1,1,1,1,"2023-2028"]
[null,8,0,5,0,7,0,3,1,7,3,0,1,2,0,1,6,0,1,7,3,0,1,1,6,0,0,1," Показатель 1. Доля организаций дополнительного образования, в которых оценка деятельности  всех категорий работников осуществляется на основании показателей эффективности деятельности ","%",100,100,100,100,100,100,100,"2023-2028"]
[null,8,0,5,0,7,0,3,1,7,3,0,1,2,0,1,6,0,1,7,3,0,1,1,6,0,0,2,"Показатель 2. Доля педагогических работников, прошедших курсы повышения квалификации","%",90,90,90,90,90,90,90,"2023-2028"]
[null,8,0,5,0,7,0,3,1,7,3,0,1,2,0,1,6,0,1,7,3,0,1,1,6,0,0,3,"Показатель 3. Доля педагогических работников, имеющих квалификационную категорию.","%",86,87,87,87,88,88,88,"2023-2028"]
[null,8,0,5,0,7,0,3,1,7,3,0,1,2,0,1,7,0,1,7,3,0,1,1,7,0,0,0,"Мероприятие 17. Погашение просроченной кредиторской задолженности","рублей",0,0,0,0,0,0,{"$f":"AE152","v":0},"2023-2028"]
[null,8,0,5,0,7,0,3,1,7,3,0,1,2,0,1,7,0,1,7,3,0,1,1,7,0,0,1,"Показатель 1 . Доля погашенной кредиторской задолженности ","%",100,100,100,100,100,100,100,"2023-2028"]
[null,8,0,5,0,7,0,3,1,7,3,0,2,0,0,0,0,0,1,7,3,0,2,0,0,0,0,0,"Задача 2  \"Повышение заработной платы педагогическим работникам муниципальных организаций дополнительного образования\"\n","рублей",{"$f":"AE155","v":1893400},{"$f":"AF155","v":1893400},1893400,1893400,1893400,1893400,{"$f":"AE154+AF154+AG154+AH154+AI154+AJ154","v":11360400},"2023-2028"]
[null,8,0,5,0,7,0,3,1,7,3,0,2,1,0,6,9,0,1,7,3,0,2,2,1,0,0,0,"Мероприятие 2.1.Повышение заработной платы педагогическим работникам муниципальных организаций дополнительного образования","рублей",1893400,1893400,1893400,1893400,1893400,1893400,{"$f":"AE155+AF155+AG155+AH155+AI155+AJ155","v":11360400},"2023-2028"]
[null,8,0,5,0,7,0,3,1,7,3,0,2,1,0,6,9,0,1,7,3,0,2,2,1,0,0,0,"Показатель 1. Соотношение значения достигнутой средней заработной платы педагогов дополнительного образования с доведенным до муниципального образования","%",100,100,100,100,100,100,100,"2023-2028"]
[null,8,0,5,0,7,0,3,1,7,3,0,3,0,0,0,0,0,1,7,3,0,3,0,0,0,0,0,"Задача 3 «Реализация системы персонифицированного финансирования  дополнительного образования детей» ","рублей",1706606,1706606,1706606,1706606,1706606,1706606,1706606,"2023-2028"]
[null,8,0,5,0,7,0,3,1,7,3,0,3,0,2,3,1,0,1,7,3,0,3,3,1,0,0,0,"Мероприятие 3.1. «Обеспечение функционирования системы персонифицированного финансирования дополнительного образования детей»:","рублей ",1706606,1706606,1706606,1706606,1706606,1706606,1706606,"2023-2028"]
[null,8,0,5,0,7,0,3,1,7,3,0,3,0,2,3,1,0,1,7,3,0,3,3,1,0,0,1," Показатель 1.Доля детей в возрасте от 5 до 18 лет, охваченных дополнительным образованием","%",0.83,0.83,0.85,0.85,0.85,0.85,0.85,"2023-2028"]
[null,8,0,5,0,7,0,3,1,7,3,0,3,0,2,3,1,0,1,7,3,0,3,3,1,0,0,2," Показатель 2. Доля детей в возрасте от 5 до 18 лет, охваченных дополнительными общеразвивающими программами технической и естественно научной направленности","%",0.35,0.35,0.36,0.36,0.36,0.36,0.36,"2023-2028"]
[null,8,0,5,0,7,0,3,1,7,3,0,3,0,2,3,1,0,1,7,3,0,3,3,1,0,0,3," Показатель 3.Доля детей с ограниченными возможностями здоровья, обучающихся по дополнительным общеобразовательным программам, в том числе с использованием дистанционных технологий ","%",0.51,0.51,0.52,0.52,0.52,0.52,0.52,"2023-2028"]
[null,8,0,5,0,7,0,3,1,7,3,0,3,0,2,3,1,0,1,7,3,0,3,3,1,0,0,4," Показатель 4. Создание муниципальных (опорных) центров дополнительного образования детей","ед",1,1,1,1,1,1,1,"2023-2028"]
[null,8,0,5,0,7,0,3,1,7,3,0,3,0,2,3,1,0,1,7,3,0,3,3,1,0,0,5," Показатель 5.Внедрение системы персонифицированного финансирования дополнительного образования детей","ед",0.77,0.77,0.77,0.77,0.77,0.77,0.77,"2023-2028"]
[null,8,0,5,0,7,0,3,1,7,3,0,3,0,2,3,1,0,1,7,3,0,3,3,1,0,0,6," Показатель 6. Доля детей, охваченных системой персонифицированного финансирования дополнительного образования детей","%",0.12,0.18,0.2,0.25,0.25,0.25,0.25,"2023-2028"]
[null,8,0,5,0,7,0,3,1,7,3,0,3,0,2,3,1,0,1,7,3,0,3,3,1,0,0,7," Показатель 7. Обеспечение работы в Навигаторе дополнительного образования детей Весьегонского муниципального округа","да -1 / нет -0","1","1","1","1","1","1","1","2023-2028"]
[null,8,0,5,0,7,0,3,1,7,3,0,3,0,2,3,1,0,1,7,3,0,3,3,1,0,0,8," Показатель 8. Количество заочных школ и (или) ежегодных сезонных школ для мотивированных школьников","ед",0,0,0,0,0,0,0,"2023-2028"]
[null,8,0,5,0,7,0,3,1,7,3,0,3,0,2,3,1,0,1,7,3,0,3,3,1,0,0,9," Показатель 9. Количество разработанных и внедренных моделей обеспечения доступности дополнительного образования для детей из сельской местности","ед",1,1,1,1,1,1,1,"2023-2028"]
[null,8,0,5,0,7,0,3,1,7,3,0,3,0,2,3,1,0,1,7,3,0,3,3,1,0,1,0," Показатель 10. Количество разработанных и внедренных разноуровневых (ознакомительный, базовый, продвинутый) программ дополнительного образования","ед",3,3,3,3,3,3,342,"2023-2028"]
[null,8,0,5,0,7,0,3,1,7,3,0,3,0,2,3,1,0,1,7,3,0,3,3,1,0,1,1," Показатель 11.\nКоличество разработанных и внедренных дистанционных курсов дополнительного образования детей","ед",0,0,0,0,0,0,0,"2023-2028"]
[null,8,0,5,0,7,0,3,1,7,3,0,3,0,2,3,1,0,1,7,3,0,3,3,1,0,1,2," Показатель 12. Количество реализуемых дополнительных общеобразовательных программ в сетевой форме с использованием образовательных организаций всех типов, в том числе профессиональных и организаций высшего образования, а также научных, организаций спорта, культуры, общественных организаций и предприятий реального сектора экономики","ед",0,0,0,0,0,0,0,"2023-2028"]
[null,8,0,5,0,7,0,3,1,7,3,0,3,0,2,3,1,0,1,7,3,0,3,3,1,0,1,3," Показатель 13. Переподготовка (повышение квалификации) отдельных групп сотрудников муниципальных опорных центров, ведущих образовательных организаций по программам (курсам, модулям), разработанным в рамках реализации мероприятия по формированию современной системы сопровождения, развития и совершенствования профессионального мастерства педагогических и управленческих кадров сферы дополнительного образования детей","%",100,100,100,100,100,100,100,"2023-2028"]
[null,8,0,5,0,7,0,3,1,7,3,0,3,0,2,3,1,0,1,7,3,0,3,3,1,0,1,4," Показатель  14. Доля организаций (за исключением дошкольных образовательных организаций), принявших участие в инвентаризации инфраструктурных, материально-технических и кадровых ресурсов, в том числе образовательных организаций различного типа, научных организаций, организаций культуры, спорта и реального сектора экономики, потенциально пригодных для реализации образовательных программ[1]","%",0,0,0,0,0,0,0,"2023-2028"]
[null,8,0,5,0,7,0,3,1,7,3,0,3,0,2,3,1,0,1,7,3,0,3,3,1,0,1,5," Показатель 15. Доля детей из числа обучающихся общеобразовательных организаций, принявших участие в открытых он-лайн уроках, реализуемых с учетом опыта цикла открытых уроков «Проектория», «Уроки настоящего» или иных аналогичных по возможностям, функциям и результатам проектов, направленных на раннюю профориентацию","%",45,48,50,50,50,50,50,"2023-2028"]
[null,8,0,5,0,0,0,0,1,7,4,0,0,0,0,0,0,0,1,7,4,0,0,0,0,0,0,0,"Подпрограмма 4. Комплексная безопасность образовательных учреждений","рублей",{"$f":"AE175+AE207","v":3059776},{"$f":"AF175","v":0},0,0,0,0,1559576,"2023-2028"]
[null,8,0,5,0,0,0,0,1,7,4,0,1,0,0,0,0,0,1,7,4,0,1,0,0,0,0,0,"Задача 1.Мероприятия в рамках муниципальных программ направленных на ремонт образовательных организаций","рублей",{"$f":"AE176+AE179+AE182+AE203+AE205","v":1559576},{"$f":"AF176+AF179+AF195","v":0},0,0,0,0,{"$f":"AE175","v":1559576},"2023-2028"]
[null,8,0,5,0,7,0,1,1,7,4,0,1,2,0,1,1,0,1,7,4,0,1,1,1,0,0,0,"Мероприятие 1.1. Укрепление технического состояния дошкольных образовательных организаций","рублей",577949,0,0,0,0,0,{"$f":"AE176","v":577949},"2023-2028"]
[null,8,0,5,0,7,0,1,1,7,4,0,1,2,0,1,1,0,1,7,4,0,1,1,1,0,0,1,"Показатель1. Доля  дошкольных образовательных организаций, не имеющих предписаний Роспотребнадзора.","%",53,53,53,55,55,70,70,"2023-2028"]
[null,8,0,5,0,7,0,1,1,7,4,0,1,2,0,1,1,0,1,7,4,0,1,1,1,0,0,2," Показатель 2.Количество организаций, в которых будут проведены мероприятия по укреплению материально – технической базы общеобразовательных организаций  ","единиц",7,7,7,7,7,7,7,"2023-2028"]
[null,8,0,5,0,7,0,2,1,7,4,0,1,2,0,1,2,0,1,7,4,0,1,1,2,0,0,0,"Мероприятие 1.2. Укрепление технического состояния общеобразовательных организаций","рублей",753127,0,0,0,0,0,{"$f":"AJ179+AI179+AH179+AG179+AF179+AE179","v":753127},"2023-2028"]
[null,8,0,5,0,7,0,2,1,7,4,0,1,2,0,1,2,0,1,7,4,0,1,1,2,0,0,1,"Показатель1. Доля общеобразовательных организаций, не имеющих предписаний Роспотребнадзора.","%",75,75,75,80,80,80,80,"2023-2028"]
[null,8,0,5,0,7,0,2,1,7,4,0,1,2,0,1,2,0,1,7,4,0,1,1,2,0,0,2," Показатель 2.Количество организаций, в которых будут проведены мероприятия по укреплению материально – технической базы общеобразовательных организаций  ","единиц",4,4,4,4,4,4,4,"2023-2028"]
[null,8,0,5,0,7,0,2,1,7,4,0,1,2,0,1,3,0,1,7,4,0,1,1,3,0,0,0,"Мероприятие 1.3. Проведение текущего ремонта организаций дополнительного образования .","рублей",100000,0,0,0,0,{"$f":"AE182","v":100000},{"$f":"AF182+AE182","v":100000},"2023-2028"]
[null,8,0,5,0,7,0,2,1,7,4,0,1,2,0,1,3,0,1,7,4,0,1,1,3,0,0,1,"Показатель1. Доля  организаций дополнительного образования , не имеющих предписаний Роспотребнадзора.","%",100,100,100,100,100,100,100,"2023-2028"]
[null,8,0,5,0,7,0,2,1,7,4,0,1,2,0,1,4,0,1,7,4,0,1,1,4,0,0,0,"Мероприятие 1.4.Приобретение новых школьных автобусов и оснащение их в соответствиис САНПиН","кол-во",2,0,1,0,0,1,4,"2023-2028"]
[null,8,0,5,0,7,0,2,1,7,4,0,1,2,0,1,4,0,1,7,4,0,1,1,4,0,0,1,"Показатель1. Доля общеобразовательных организаций, не имеющих предписаний дорожно-транспортной инспекции","%",90,100,100,100,100,100,100,"2023-2028"]
[null,8,0,5,0,7,0,2,1,7,4,0,1,2,0,1,4,0,1,7,4,0,1,1,4,0,0,2,"Показатель2.Доля руководителей и лиц, ответственных за организацию школьных перевозок, прошедших обучение.","%",100,100,100,100,100,100,100,"2023-2028"]
[null,8,0,5,0,0,0,0,1,7,4,0,1,2,0,1,5,0,1,7,4,0,1,1,5,0,0,0,"Мероприятие 1.5.Ремонт пищеблоков и приобретение  современного технологического оборудования","рублей",0,0,0,0,0,0,0,"2023-2028"]
[null,8,0,5,0,0,0,0,1,7,4,0,1,2,0,1,5,0,1,7,4,0,1,1,5,0,0,1,"Показатель1.  Доля образовательных организаций, в которых отсутствуют предписания Роспотребнадзора по организации питания.","%",74,75,75,75,80,80,80,"2023-2028"]
[null,8,0,5,0,0,0,0,1,7,4,0,1,2,0,1,5,0,1,7,4,0,1,1,5,0,0,2,"Показатель2. Доля образовательных  организаций, имеющих современное технологическое оборудование","%",30,40,40,40,40,40,40,"2023-2028"]
[null,8,0,5,0,7,0,2,1,7,4,0,1,2,0,1,6,0,1,7,4,0,1,1,6,0,0,0,"Мероприятие 1.6.Установка ограждения территорий образовательных организаций в соответствии с САНПиН","рублей",0,0,0,0,0,0,0,"2023-2028"]
[null,8,0,5,0,7,0,2,1,7,4,0,1,2,0,1,6,0,1,7,4,0,1,1,6,0,0,1,"Показатель1. Доля образовательных организаций, не имеющих предписаний надзорных органов","%",80,90,90,90,90,90,90,"2023-2028"]
[null,8,0,5,0,7,0,2,1,7,4,0,1,2,0,1,7,0,1,7,4,0,1,1,7,0,0,0,"Административное мероприятие 1.7 Профилактика терроризма и экстремизма","да - 1, нет - 0",1,1,1,1,1,1,1,"2023-2028"]
[null,8,0,5,0,7,0,2,1,7,4,0,1,2,0,1,7,0,1,7,4,0,1,1,7,0,0,1,"Показатель1. Отсутствие случаев проявления экстремизма среди подростков","да - 1, нет - 0",1,1,1,1,1,1,1,"2023-2028"]
[null,8,0,5,0,7,0,2,1,7,4,0,1,2,0,1,7,0,1,7,4,0,1,1,7,0,0,2,"Показатель 2. Доля образовательных организаций, имеющих \" тревожную кнопку\"","%",50,50,50,50,50,50,50,"2023-2028"]
[null,8,0,5,0,7,0,1,1,7,4,0,1,"S",0,4,4,0,1,7,4,0,1,1,8,0,0,0,"Мероприятие 1.8. Расходы на укрепление материально-технической базы муниципальных дошкольных образовательных организаций","рублей",0,0,0,0,0,0,{"$f":"AE195","v":0},"2023-2028"]
[null,8,0,5,0,7,0,1,1,7,4,0,1,"S",0,4,4,0,1,7,4,0,1,1,8,0,0,1,"Показатель 1.Доля использованных средств муниципального бюджета на укрепление МТБ дошкольных образовательных учреждений","%",100,100,100,100,100,100,100,"2023-2028"]
[null,8,0,5,0,7,0,2,1,7,4,0,1,"S",0,4,4,0,1,7,4,0,1,1,9,0,0,0,"Мероприятие 1.9. Расходы на укрепление материально-технической базы муниципальных общеобразовательных организаций","рублей",0,null,0,0,0,0,{"$f":"AE197+AF197","v":0},"2023-2028"]
[null,8,0,5,0,7,0,2,1,7,4,0,1,"S",0,4,4,0,1,7,4,0,1,1,9,0,0,1,"Показатель 1.Доля использованных средств муниципального бюджета на укрепление МТБ общеобразовательных учреждений","%",100,100,100,100,100,100,100,"2023-2028"]
[null,8,0,5,0,7,0,2,1,7,4,0,1,1,0,4,4,0,1,7,4,0,1,1,1,0,0,0,"Мероприятие 1.10 Субсидии на укрепление материально-технической базы муниципальных общеобразовательных организаций\n","рублей",0,0,0,0,0,0,{"$f":"AE199","v":0},"2023-2028"]
[null,8,0,5,0,7,0,2,1,7,4,0,1,1,0,4,4,0,1,7,4,0,1,1,1,0,0,1,"Показатель 1.Доля использованной субсидии на укрепление МТБ общеобразовательных организаций","%",100,100,100,100,100,100,100,"2023-2028"]
[null,8,0,5,0,7,0,2,1,7,4,0,1,1,1,4,4,0,1,7,4,0,1,1,1,1,0,0,"Мероприятие 1.11.Субсидии на укрепление материально-технической базы муниципальных дошкольных образовательных организаций","рублей",0,0,0,0,0,0,{"$f":"AE201","v":0},"2023-2028"]
[null,8,0,5,0,7,0,2,1,7,4,0,1,1,1,4,4,0,1,7,4,0,1,1,1,1,0,1,"Показатель 1.Доля использованной субсидии на укрепление МТБ  дошкольных образовательных организаций","%",100,100,100,100,100,100,100,"2023-2028"]
[null,8,0,5,0,7,0,2,1,7,4,0,1,1,8,0,0,0,1,7,4,0,1,1,1,2,0,0,"Мероприятие 1.12.Иные межбюджетные трансферты местным бюджетам на реализацию проектов в рамках поддержки школьных инициатив Тверской области","рублей",116500]
[null,8,0,5,0,7,0,2,1,7,4,0,1,1,8,0,0,0,1,7,4,0,1,1,1,2,0,1,"Показатель"]
[null,8,0,5,0,7,0,2,1,7,4,0,1,"S",8,0,0,0,1,7,4,0,1,1,1,2,0,0,"Мероприятие 1.13. Софинансирование на реализацию проектов в рамках поддержки школьных инициатив Тверской области за счет средств местного бюджета","рублей",12000,0,0,0,0,0,{"$f":"AE205","v":12000}]
[null,8,0,5,0,7,0,2,1,7,4,0,1,"S",8,0,0,0,1,7,4,0,1,1,1,2,0,1,"Показатель"]
[null,8,0,5,0,7,0,2,1,7,4,0,2,0,0,0,0,0,1,7,4,0,2,0,0,0,0,0,"Задача 2. Проведение  противопожарных мероприятий в образовательных организациях","рублей",{"$f":"AE220+AE222","v":1500200},{"$f":"AF208+AF210","v":0},{"$f":"AG208+AG210+AG212","v":0},0,0,0,{"$f":"AE207+AF207+AG207","v":1500200},"2023-2028"]
[null,8,0,5,0,7,0,1,1,7,4,0,2,2,0,2,1,0,1,7,4,0,2,2,1,0,0,0,"Мероприятие 2.1.Проведение противопожарных мероприятий в дошкольных образовательных организациях","рублей",0,0,0,0,0,0,{"$f":"AE208+AF208+AG208","v":0},"2023-2028"]
[null,8,0,5,0,7,0,1,1,7,4,0,2,2,0,2,1,0,1,7,4,0,2,2,1,0,0,1,"Показатель1. Доля  дошкольных образовательных организаций, не имеющих предписаний по пожарной безопасности.","%",60,80,80,80,80,80,80,"2023-2028"]
[null,8,0,5,0,7,0,2,1,7,4,0,2,2,0,2,2,0,1,7,4,0,2,2,2,0,0,0,"Мероприятие 2.2. Проведение противопожарных мероприятий в общеобразовательных организациях","рублей",0,0,0,0,0,0,{"$f":"AE210+AF210+AG210","v":0},"2023-2028"]
[null,8,0,5,0,7,0,2,1,7,4,0,2,2,0,2,2,0,1,7,4,0,2,2,2,0,0,1,"Показатель1. Доля  общеобразовательных организаций, не имеющих предписаний по пожарной безопасности.","%",80,80,80,80,80,80,80,"2023-2028"]
[null,8,0,5,0,7,0,3,1,7,4,0,2,2,0,2,3,0,1,7,4,0,2,2,3,0,0,0,"Мероприятие 2.3. Проведение противопожарных мероприятий в организациях дополнительного образования .","рублей",0,0,0,0,0,0,{"$f":"AE212","v":0},"2023-2028"]
[null,8,0,5,0,7,0,3,1,7,4,0,2,2,0,2,3,0,1,7,4,0,2,2,3,0,0,1,"Показатель1. Доля  организаций  дополнительного образования , не имеющих предписаний по пожарной безопасности.","%",100,100,100,100,100,100,100,"2023-2028"]
[null,8,0,5,0,7,0,2,1,7,4,0,2,2,0,2,4,0,1,7,4,0,2,2,4,0,0,0,"Административное мероприятие 2.4. Обучение руководителей ТБ","да - 1, нет - 0",1,1,1,1,1,1,1,"2023-2028"]
[null,8,0,5,0,7,0,2,1,7,4,0,2,2,0,2,4,0,1,7,4,0,2,2,4,0,0,1,"Показатель 1. Доля руководителей, прошедших обучение.","%",100,100,100,100,100,100,100,"2023-2028"]
[null,8,0,5,0,7,0,2,1,7,4,0,2,2,0,2,5,0,1,7,4,0,2,2,5,0,0,1,"Мероприятие 2.5.Субсидии на обеспечение комплексной безопасности зданий и помещений, находящихся в муниципальной собственности и используемых для размещения общеобразовательных организаций","рублей",0,0,0,0,0,0,{"$f":"AE216","v":0},"2023-2028"]
[null,8,0,5,0,7,0,2,1,7,4,0,2,2,0,2,5,0,1,7,4,0,2,2,5,0,0,1,"Показатель 1.Доля учреждений, использующих субсидию","%",100,100,100,100,100,100,100,"2023-2028"]
[null,8,0,5,0,7,0,1,1,7,4,0,2,2,0,2,6,0,1,7,4,0,2,2,6,0,0,0,"Мероприятие 2.6 Погашение просроченной кредиторской задолженности","рублей",0,0,0,0,0,0,{"$f":"AE218","v":0},"2023-2028"]
[null,8,0,5,0,7,0,1,1,7,4,0,2,2,0,2,6,0,1,7,4,0,2,2,6,0,0,1,"Показатель 1.Доля погашенной кредиторской задолженности ","%",100,100,100,100,100,100,100,"2023-2028"]
[null,8,0,5,0,7,0,1,1,7,4,0,2,1,1,3,5,0,1,7,4,0,2,2,7,0,0,0,"Мероприятие 2.7.  Субсидии местным бюджетам на оснащение муниципальных образовательных организаций, реализующих программы дошкольного образования, уличными игровыми комплексами","рублей",1485000,0,0,0,0,0,{"$f":"AE220","v":1485000},2023]
[null,8,0,5,0,7,0,1,1,7,4,0,2,1,1,3,5,0,1,7,4,0,2,2,7,0,0,0,"Показатель 1. Количество игровых комплексов","шт.",1,null,null,null,null,null,null,2023]
[null,8,0,5,0,7,0,1,1,7,4,0,2,"S",1,3,5,0,1,7,4,0,2,2,8,0,0,0,"Мероприятие 2.8.  Софинансирование на оснащение муниципальных образовательных организаций, реализующих программы дошкольного образования, уличными игровыми комплексами","рублей",15200,0,0,0,0,0,{"$f":"AE222","v":15200},2023]
[null,8,0,5,0,7,0,1,1,7,4,0,2,"S",1,3,5,0,1,7,4,0,2,2,8,0,0,0,"Показатель 1. Количество игровых комплексов","шт.",1,null,null,null,null,null,null,2023]
[null,8,0,5,0,0,0,0,1,7,5,0,0,0,0,0,0,0,1,7,5,0,0,0,0,0,0,0,"Подпрограмма 5  \"Укрепление здоровья детей и подростков  в образовательных организациях Весьегонского муниципального округа Тверской области\"","рублей",{"$f":"AE225+AE234","v":619261},{"$f":"AF225+AF234","v":549261},549261,549261,549261,549261,3365566,"2023-2028"]
[null,8,0,5,0,0,0,0,1,7,5,0,1,0,0,0,0,0,1,7,5,0,1,0,0,0,0,0,"Задача 1. Организация отдыха и занятости детей и подростков в каникулярное время.","рублей",{"$f":"AE228","v":157961},{"$f":"AF228","v":87961},87961,87961,87961,87961,597766,"2023-2028"]
[null,8,0,5,0,7,0,7,1,7,5,0,1,2,0,1,1,0,1,7,5,0,1,1,1,0,0,0,"Административное мероприятие 1.1. Прохождение медицинских осмотров и санитарно-гигиенического обучения работников летних оздоровительных лагерей лагерей ","да - 1, нет - 0",1,1,1,1,1,1,1,"2023-2028"]
[null,8,0,5,0,7,0,7,1,7,5,0,1,"S",0,2,4,0,1,7,5,0,1,1,1,0,0,1,"Показатель 1.  Доля  образовательных организаций, готовых  к работе летних оздоровительных лагерей.","%",100,100,100,null,null,null,100,"2023-2028"]
[null,8,0,5,0,7,0,7,1,7,5,0,1,"S",0,2,4,0,1,7,5,0,1,1,2,0,0,0,"Мероприятие 1.2. Организация отдыха детей и подростков в каникулярное время","рублей",157961,87961,87961,87961,87961,87961,{"$f":"AE228+AF228+AG228+AH228+AI228+AJ228","v":597766},"2023-2028"]
[null,8,0,5,0,7,0,7,1,7,5,0,1,2,0,1,2,0,1,7,5,0,1,1,2,0,0,1,"Показатель 1. Доля детей и подростков, получивших в соответствующем финансовом году услугу по обеспечению отдыха и оздоровления детей в организациях отдыха детей и их оздоровления  в каникулярное время, от общей численности обучающихся муниципальных общеобразовательных организаций","%",56,56,58,58,58,58,58,"2023-2028"]
[null,8,0,5,0,7,0,7,1,7,5,0,1,2,0,1,3,0,1,7,5,0,1,1,3,0,0,0,"Административное мероприятие 1.3.Профилактика  преступности  и правонарушений среди несовершеннолетних ","да - 1, нет - 0",1,1,1,1,1,1,1,"2023-2028"]
[null,8,0,5,0,7,0,7,1,7,5,0,1,2,0,1,3,0,1,7,5,0,1,1,3,0,0,1,"Показатель1. Отсутствие  правонарушений  среди подростков","да - 1, нет - 0",1,1,1,1,1,1,1,"2023-2028"]
[null,8,0,5,0,4,0,1,1,7,5,0,1,2,0,1,4,0,1,7,5,0,1,1,4,0,0,0,"Мероприятие 1.4. Занятость подростков в летний период","рублей",0,0,0,0,0,0,0,"2023-2028"]
[null,8,0,5,0,4,0,1,1,7,5,0,1,2,0,1,4,0,1,7,5,0,1,1,4,0,0,1,"Показатель 1. Доля трудоустроенных подростков во время занятости в летний период","%",10,10,10,10,10,10,10,"2023-2028"]
[null,8,0,5,0,7,0,7,1,7,5,0,2,0,0,0,0,0,1,7,5,0,2,0,0,0,0,0,"Задача 2. Организация отдыха детей в каникулярное время","рублей",{"$f":"AE235","v":461300},{"$f":"AF235","v":461300},461300,461300,461300,461300,2767800,"2023-2028"]
[null,8,0,5,0,7,0,7,1,7,5,0,2,1,0,2,4,0,1,7,5,0,2,2,1,0,0,0,"Мероприятие 2.1. Субсидии на организацию отдыха детей в каникулярное время","рублей",461300,461300,461300,461300,461300,461300,{"$f":"AE235+AF235+AG235+AH235+AI235+AJ235","v":2767800},"2023-2028"]
[null,8,0,5,0,7,0,7,1,7,5,0,2,1,0,2,4,0,1,7,5,0,2,2,1,0,0,1,"Показатель 1. Доля детей и подростков, получивших в соответствующем финансовом году услугу по обеспечению отдыха и оздоровления детей в организациях отдыха детей и их оздоровления  в каникулярное время, от общей численности обучающихся муниципальных общеобразовательных организаций","%",56,56,58,58,58,58,58,"2023-2028"]
[null,8,0,5,1,0,0,3,1,7,6,0,0,0,0,0,0,0,1,7,6,0,0,0,0,0,0,0,"Подпрограмма 6\"Осуществление государственных полномочий по выплате компенсаций расходов по оплате жилых помещений, отопления и освещения педагогическим работникам, проживающим и работающим в сельской местности\"","рублей",{"$f":"AE238","v":1026000},{"$f":"AF238","v":1026000},1026000,1026000,1026000,1026000,6156000,"2023-2028"]
[null,8,0,5,1,0,0,0,0,0,0,0,1,0,0,0,0,0,1,7,6,0,1,0,0,0,0,0,"Задача 1. Осуществление государственных полномочий по выплате компенсаций расходов по оплате жилых помещений, отопления и освещения педагогическим работникам, проживающим и работающим в сельской местности","рублей",1026000,1026000,1026000,1026000,1026000,1026000,{"$f":"AE238+AF238+AG238+AH238+AI238+AJ238","v":6156000},"2023-2028"]
[null,8,0,5,0,7,0,1,1,7,6,0,1,1,0,5,6,0,1,7,6,0,1,1,1,0,0,0,"Мероприятие 1.1 Субвенции бюджетам муниципальных образований на осуществление отдельных государственных полномочий Тверской области по предоставлению компенсации расходов на оплату жилых помещений, отопления и освещения отдельным категориям педагогических работников, проживающим и работающим в сельских населенных пунктах, рабочих поселках (поселках городского типа) - дошкольные образовательные организации","рублей",144000,144000,144000,144000,144000,144000,null,"2023-2028"]
[null,8,0,5,0,7,0,1,1,7,6,0,1,1,0,5,6,0,1,7,6,0,1,1,1,0,0,0,"Показатель 1.  Количество педагогов, проживающих в сельской местности и работающих в дошкольных образовательных учреждениях","чел.",8,8,8,8,8,8,8,"2023-2028"]
[null,8,0,5,0,7,0,1,1,7,6,0,1,1,0,5,6,0,1,7,6,0,1,1,1,0,0,0," Показатель 2. Доля педагогов, получающих компенсацию","%",100,100,100,100,100,100,100,"2023-2028"]
[null,8,0,5,0,7,0,2,1,7,6,0,1,1,0,5,6,0,1,7,6,0,1,1,1,0,0,0,"Мероприятие 1.2 Субвенции бюджетам муниципальных образований на осуществление отдельных государственных полномочий Тверской области по предоставлению компенсации расходов на оплату жилых помещений, отопления и освещения отдельным категориям педагогических работников, проживающим и работающим в сельских населенных пунктах, рабочих поселках (поселках городского типа) - образовательные организации","рублей",882000,882000,882000,882000,882000,882000,null,"2023-2028"]
[null,8,0,5,0,7,0,2,1,7,6,0,1,1,0,5,6,0,1,7,6,0,1,1,1,0,0,0,"Показатель 1.  Количество педагогов, проживающих в сельской местности и работающих в общеобразовательных учреждениях","чел.",50,48,48,48,48,48,48,"2023-2028"]
[null,8,0,5,0,7,0,2,1,7,6,0,1,1,0,5,6,0,1,7,6,0,1,1,1,0,0,0," Показатель 2. Доля педагогов , получающих компенсацию","%",100,100,100,100,100,100,100,"2023-2028"]
[null,8,0,5,0,7,0,9,1,7,9,0,0,0,0,0,0,0,1,1,9,0,0,0,0,0,0,0,"Обеспечивающая подпрограмма ","рублей",{"$f":"AE246","v":7376046},{"$f":"AF246","v":6656657},6656657,6656657,6656657,6656657,40659331,"2023-2028"]
[null,8,0,5,0,7,0,9,1,7,9,0,1,0,0,0,0,0,0,7,9,0,1,0,0,0,0,0,"1.  Обеспечение деятельности главного администратора муниципальной программы","рублей",{"$f":"AE247","v":7376046},{"$f":"AF247","v":6656657},6656657,6656657,6656657,6656657,40659331,"2023-2028"]
[null,8,0,5,0,7,0,9,1,7,9,0,1,2,0,1,1,0,1,7,9,0,1,1,1,0,0,0,"1.1 Расходы  на обеспечение деятельности администратора муниципальной программы","рублей",7376046,6656657,6656657,6656657,6656657,6656657,{"$f":"AE247+AF247+AG247+AH247+AI247+AJ247","v":40659331},"2023-2028"]
[null,8,0,5,0,0,0,0,1,7,9,0,2,0,0,0,0,0,1,7,9,0,2,0,0,0,0,0,"2.Административные мероприятия",null,null,null,null,null,null,null,null,"2023-2028"]
[null,8,0,5,0,0,0,0,1,7,9,0,2,2,0,2,1,0,1,7,9,0,2,2,1,0,0,0,"Административное мероприятие  2.1 Разработка проектов нормативных правовых актов Весьегонского муниципального округа по вопросам, относящимся к сфере ведения Отдела образования ","да - 1, нет - 0",1,1,1,1,1,1,1,"2023-2028"]
[null,8,0,5,0,0,0,0,1,7,9,0,2,2,0,2,1,0,1,7,9,0,2,2,1,0,0,1,"Показатель 1.   \"Количество разработанных проектов нормативных правовых актов Весьегонского муниципального округа  по вопросам, относящимся к сфере ведения Отдела образования","единиц",20,20,20,20,20,20,20,"2023-2028"]
[null,8,0,5,0,0,0,0,1,7,9,0,2,2,0,2,2,0,1,7,9,0,2,2,2,0,0,0,"Административное мероприятие  2.2.  Организация и проведение заседаний Совета по образованию  Весьегонского муниципального округа по актуальным вопросам отрасли\" ","да - 1, нет - 0",1,1,1,1,1,1,1,"2023-2028"]
[null,8,0,5,0,0,0,0,1,7,9,0,2,2,0,2,2,0,1,7,9,0,2,2,2,0,0,1,"Показатель 1.Количество проведенных заседаний  Совета по образованию Весьегонского муниципального округа по актуальным вопросам отрасли","единиц",4,4,4,4,4,4,4,"2023-2028"]
[null,8,0,5,0,0,0,0,1,7,9,0,2,2,0,2,3,0,1,7,9,0,2,2,3,0,0,0,"Административное мероприятие  2.3   Подготовка и направление заявок в Министерство образования Тверской области на получение средств ФСР на мероприятия комплексной безопасности образовательных организаций","да - 1, нет - 0",1,1,1,1,1,1,1,"2023-2028"]
[null,8,0,5,0,0,0,0,1,7,9,0,2,2,0,2,3,0,1,7,9,0,2,2,3,0,0,1,"Показатель 1.   Количество заявок, поданных в Министерство образования Тверской области на получение средств ФСР","единиц",14,15,15,15,15,15,15,"2023-2028"]
[null,8,0,5,0,0,0,0,1,7,9,0,2,2,0,2,4,0,1,7,9,0,2,2,4,0,0,0,"Административное мероприятие  2.4      Взаимодействие с органами местного самоуправления,  правоохранительными органами,  общественными организациями,  по вопросам, находящимся в ведении  Отдела образования","да - 1, нет - 0",1,1,1,1,1,1,1,"2023-2028"]
[null,8,0,5,0,0,0,0,1,7,9,0,2,2,0,2,5,0,1,7,9,0,2,2,5,0,0,0,"Административное мероприятие  2.5.  Сопровождение и информационное наполнение официального сайта Весьегонского муниципального округа  в информационно-телекоммуникационной сети Интернет","да - 1, нет - 0",1,1,1,1,1,1,1,"2023-2028"]
[null,8,0,5,0,0,0,0,1,7,9,0,2,2,0,2,5,0,1,7,9,0,2,2,5,0,0,1,"Показатель 1. Количество посещений официального сайта Весьегонского муниципального округа  в информационно-телекоммуникационной сети Интернет в год","единиц",200,230,230,250,250,250,{"$f":"AE257+AF257+AG257","v":660},"2023-2028"]
[null,8,0,5,0,0,0,0,1,7,9,0,2,2,0,2,6,0,1,7,9,0,2,2,6,0,0,0,"Административное мероприятие 2.6. Введение эффективного контракта","да - 1, нет - 0",1,1,1,1,1,1,1,"2023-2028"]
[null,8,0,5,0,0,0,0,1,7,9,0,2,2,0,2,6,0,1,7,9,0,2,2,6,0,0,1," Показатель 1.  Оценка деятельности  всех категорий работников осуществляется на основании показателей эффективности деятельности ","да - 1, нет - 0",1,1,1,1,1,1,1,"2023-2028"]